Workbook

Sheet VLEESEENDEN
E1: Rekenmodel Vee-combistof - pluimvee (V2.0, 15 maart 2021) | J1: Berekenen van het reductiepercentage van combinaties van fijnstof reducerende technieken
H3: TOELICHTING GEBRUIK REKENMODEL (Er is online ook een handleiding beschikbaar).
E4: invullen | F4: naam | H4: Bij alle GEEL gekleurde vakjes dient een keuze gemaakt te worden. Ga op het vakje staan, klik rechts naast vakje en kies een optie.
E5: invullen | F5: adres | H5: De gerealiseerde reductiepercentages staan in GROENE blokjes vermeld. Helemaal rechts is het reductiepercentage van de combinatie van de fijnstofreducerende
D6: KIES HENNEN of HANEN | E6: =TODAY() -> 2021-03-12 | F6: datum | H6: technieken weergegeven. Als combinaties niet mogelijk of zinvol zijn, verschijnt er tekst in ROOD. Bij 'niet mogelijk' dient u keuze(s) aan te passen.
D7: HENNEN | H7: Bij warmtewisselaar en stoffilter kan de ventilatiehoeveelheid door een techniek aangepast worden met de pijltjes omhoog/omlaag.
D8: HANEN
C10: ̌ | H10: =IF(F14+H16=0,"Geen warmtewisselaar","Warmtewisselaar") -> Geen warmtewisselaar | Q10: Reductiepercentage PM10
H11: =IF(H10="warmtewisselaar","Reductiepercentage WW 80%"," ") ->  | J11: =IF(L20="geen techniek",F14+H16,IF(J13="ja",0,F14+H16)) -> 0 | K11: m3/uur | L11: =IF(L20="Biofilter",IF(F11+J14>0,"Combinatie met warmtewisselaar is niet zinvol"," "),IF(L20="bio wasser 60%",IF(F11+J14>0,"Combinatie met warmtewisselaar is niet zinvol"," "),IF(L20="bio wasser 75%",IF(F11+J14>0,"Combinatie met warmtewisselaar is niet zinvol"," ")," "))) -> 
H12: =ROUND(IF(H15="nee",'wisselend debiet_eend'!$O$8*(1-E23),IF(H15="ja",'wisselend debiet_eend'!$Q$8*(1-E23))),3) -> 0 | I12: ="Lucht WW door overige techniek?" -> Lucht WW door overige techniek?
E13: Stal voor vleeseenden | H13: Warmtewisselaar met stoffilter? | J13: NEE
D14: 0 | F14: =MAX(0,IF(D14+D19>J25*100,(J25-F20),D14/100)) -> 0 | G14: m3/uur | H14: =IF(F15=0," ","Reductie% stoffilter 99%") -> Reductie% stoffilter 99% | J14: =IF(L20="geen techniek",0,IF(J13="ja",F14+H16,0)) -> 0 | K14: m3/uur
D15: 75 | F15: % t.o.v. maximum | H15: NEE | I15: =IF(J13="nee"," ",IF(L20="geen techniek",IF(J13="ja","Indien 'geen techniek', dan is er geen luchtstroom")," ")) ->  | M15: =IF(F14>0,IF(L20="Luchtconditioneringsunit","Twee keer eenzelfde type techniek in de uitgaande luchtstroom is niet logisch"," ")," ") -> 
F16: =F14/J25 -> 0 | G16: =IF(F14>0,"Reset: Zet ventilatie door WW en/of stoffilter in 1 klik op 0 m3",IF(F20>0,"Zet ventilatie door WW en/of stoffilter in 1 klik op 0 m3"," ")) -> 
I17: =IF(J11=0," ",IF(L20="chemische wasser 35%","Alle lucht moet door overige techniek vanwege ammoniak en/of fijn stof",IF(L20="chemische wasser 70%","Alle lucht moet door overige techniek vanwege ammoniak en/of fijn stof",IF(L20="Bio wasser 60%","Alle lucht moet door overige techniek vanwege ammoniak en/of fijn stof",IF(L20="Bio wasser 75%","Alle lucht moet door overige techniek vanwege ammoniak en/of fijn stof",IF(L20="Biofilter","Alle lucht moet door overige techniek vanwege ammoniak en/of fijn stof"," ")))))) -> 
E18: Staltechniek | H18: =IF(F20=0,"Geen stoffilter","Droog stoffilter") -> Geen stoffilter | L18: Overige technieken
D19: 0 | E19: GEEN STALTECHNIEK | H19: =IF(F20=0," ","Reductie% stoffilter 99%") ->  | I19: =IF(F20=0," ",IF(L20="chemische wasser 35%","Alle lucht moet door overige techniek vanwege ammoniak en/of fijn stof",IF(L20="chemische wasser 70%","Alle lucht moet door overige techniek vanwege ammoniak en/of fijn stof",IF(L20="Bio wasser 60%","Alle lucht moet door overige techniek vanwege ammoniak en/of fijn stof",IF(L20="Bio wasser 75%","Alle lucht moet door overige techniek vanwege ammoniak en/of fijn stof",IF(L20="Biofilter","Alle lucht moet door overige techniek vanwege ammoniak en/of fijn stof"," ")))))) ->  | L19: =IF(L20="chemische wasser 35%","Potentieel reductie: 35%",IF(L20="chemische wasser 70%","Potentieel reductie: 70%",IF(L20="bio wasser 60%","Potentieel reductie: 60%",IF(L20="bio wasser 75%","Potentieel reductie: 75%",IF(L20="biofilter","Potentieel reductie: 80%",IF(L20="waterluchtwassysteem","Potentieel reductie: 33%",IF(L20="droogfilterwand","Potentieel reductie: 40%",IF(L20="ionisatiefilter","Potentieel reductie: 57%",IF(L20="luchtconditioneringsunit","Potentieel reductie: 80%"," "))))))))) -> 
E20: =IF(E19="geen staltechniek"," ",IF(E19="negatieve ionisatie",IF(E14="vleeskuikens"," ","Deze techniek kan alleen bij vleeskuikens"),IF(E19="strooiselschuif",IF(E14="leghennen voliere"," ","Deze techniek kan alleen bij leghennen voliere"),IF(E19="oliefilm bij voliere dmv leidingen",IF(E14="leghennen voliere"," ",IF(E14="opfok leghennen voliere"," ",IF(E14="Vleeskuikenouderdieren voliere"," ","Deze techniek kan alleen bij (opfok)leghennen en vleeskuikenouderdieren voliere"))),IF(E19="strooiselschuif icm oliefilm bij voliere dmv leidingen",IF(E14="leghennen voliere"," ","Deze techniek kan alleen bij leghennen voliere"),IF(E19="oliefilm dmv olierobot",IF(E14="opfok leghennen grondhuisvesting"," ",IF(E14="leghennen grondhuisvesting"," ",IF(E14="vleeskuikenouderdieren grondhuisvesting"," ","Deze techniek kan alleen bij (opfok)leghennen en vleeskuikenouderdieren grondhuisvesting")))," ")))))) ->  | F20: =MAX(0,IF(D14+D19>J25*100,(J25*100-D14)/100,D19/100)) -> 0 | G20: m3/uur | H20: =ROUND(IF(F14=0,'wisselend debiet_eend'!$M$8*(1-E23),'wisselend debiet_eend'!$P$8*(1-E23)),3) -> 0 | L20: GEEN TECHNIEK
F21: =J25-F14-F20 -> 12.56 | G21: m3/uur | J21: =IF(L20="geen techniek",0,F21) -> 0 | K21: m3/uur | L21: Reductiepercentage overige techniek | M21: =IF(L20="luchtconditioneringsunit"," ",IF(L20="geen techniek"," ",IF(L20="chemische wasser 35%"," ",IF(L20="chemische wasser 70%"," ",IF(L20="bio wasser 60%"," ",IF(L20="bio wasser 75%"," ",IF(L20="waterluchtwassysteem"," ",IF(L25="biofilter"," ",IF(L20="Droogfilterwand"," ",IF(L20="ionisatiefilter",IF(E19="ionisatie d.m.v. koolstofborsteltjes","Combinatie van ionisatietechnieken is niet zinvol",IF(E19="ionisatie d.m.v. koolstof-borsteltjes icm strooiselschuif","Combinatie van ionisatietechnieken is niet zinvol"," "))," ")))))))))) -> 
E22: Reductiepercentage in stal | F22: Max. ventilatiedebiet m3/d/uur | L22: =IF(M15="Twee keer eenzelfde type techniek in de uitgaande luchtstroom is niet logisch","error",IF(F24="Niet alle lucht gaat door luchtconditioneringsunit, dus niet combineren met droog stoffilter","error",(IF(I17="Alle lucht moet door overige techniek vanwege ammoniak en/of fijn stof","error",IF(I19="Alle lucht moet door overige techniek vanwege ammoniak en/of fijn stof","error",IF(L11="Combinatie met warmtewisselaar is niet toegestaan","error",IF(F20=0,IF(J13="ja",'wisselend debiet_eend'!$U$8*(1-E23),'wisselend debiet_eend'!$S$8*(1-E23)),IF(F14=0,'wisselend debiet_eend'!$T$8*(1-E23),IF(F14>0,IF(F20>0,IF(J14=0,'wisselend debiet_eend'!$V$8*(1-E23),IF(J14>0,'wisselend debiet_eend'!$U$8*(1-E23),'wisselend debiet_eend'!$W$8*(1-E23))))))))))))) -> 0 | Q22: =ROUNDDOWN(100%-(1-E23)+(H20+H12)+L22,2) -> 0
E23: =IF(E19="ionisatieSYSTEEM MET NEGATIEVE CORONADRADEN",49%,IF(E19="ionisatie d.m.v. koolstofborsteltjes",31%,IF(E19="ionisatie d.m.v. coronadraden",52%,IF(E19="ionisatie d.m.v. ionisatie-units",16%,0)))) -> 0 | G23: =J11+J14+J21+J23 -> 12.56 | J23: =F20+F21-H16-J21 -> 12.56 | K23: m3/uur
F24: =IF(L20="Luchtconditioneringsunit",IF(H20>0,"Niet alle lucht gaat door luchtconditioneringsunit, dus niet combineren met droog stoffilter"," ")," ") -> 
D25: GEEN STALTECHNIEK | H25: Maximale ventilatie in de stal | J25: ='Max waarden'!$B$13 -> 12.56 | K25: m3/uur
D26: IONISATIE d.m.v. KOOLSTOFBORSTELTJES | J26: =IF(G23<>J25,"Optelsom debiet klopt niet"," ") -> 
E27: Gemaakt in opdracht van het ministerie van Infrastructuur en Waterstaat
D32: =IF(H19="zonder stoffilter",IF(D33="opfok leghennen",IF(H12="warmtewisselaar 13%",0.2,IF(H12="warmtewisselaar 31%",0.43,IF(H12="warmtewisselaar 37%",0.55,IF(H12="warmtewisselaar 50%",0.78)))),IF(D33="leghennen",IF(H12="warmtewisselaar 13%",0.4,IF(H12="warmtewisselaar 31%",1,IF(H12="warmtewisselaar 37%",1.25,IF(H12="warmtewisselaar 50%",1.8)))),IF(E14="opfok vleeskuikenouderdieren",IF(H12="warmtewisselaar 13%",0.4,IF(H12="warmtewisselaar 31%",1,IF(H12="warmtewisselaar 37%",1.3,IF(H12="warmtewisselaar 50%",1.9)))),IF(D33="vleeskuikenouderdieren",IF(H12="warmtewisselaar 13%",0.6,IF(H12="warmtewisselaar 31%",1.5,IF(H12="warmtewisselaar 37%",1.85,IF(H12="warmtewisselaar 50%",2.9))))))+IF(E14="vleeskuikens",IF(H12="warmtewisselaar 13%",0.35,IF(H12="warmtewisselaar 31%",1,IF(H12="warmtewisselaar 37%",1.3,IF(H12="warmtewisselaar 50%",2,0)))))+IF(E14="vleeseenden",IF(H12="warmtewisselaar 13%",0.8,IF(H12="warmtewisselaar 31%",2.3,IF(H12="warmtewisselaar 37%",3.15,IF(H12="warmtewisselaar 50%",4.8)))))))+IF(E14="kalkoen hennen",IF(H12="warmtewisselaar 13%",1.1,IF(H12="warmtewisselaar 31%",3,IF(H12="warmtewisselaar 37%",3.85,IF(H12="warmtewisselaar 50%",5.6)))))+IF(E14="kalkoen hanen",IF(H12="warmtewisselaar 13%",2.5,IF(H12="warmtewisselaar 31%",6.2,IF(H12="warmtewisselaar 37%",8.2,IF(H12="warmtewisselaar 50%",11.7))))),0)+IF(H19="met stoffilter",IF(D33="opfok leghennen",IF(H12="warmtewisselaar 13%",0.15,IF(H12="warmtewisselaar 31%",0.35,IF(H12="warmtewisselaar 37%",0.4,IF(H12="warmtewisselaar 50%",0.6)))),IF(D33="leghennen",IF(H12="warmtewisselaar 13%",0.35,IF(H12="warmtewisselaar 31%",0.85,IF(H12="warmtewisselaar 37%",1,IF(H12="warmtewisselaar 50%",1.4)))),IF(E14="leghennen grondhuisvesting",IF(H12="warmtewisselaar 13%",0.35,IF(H12="warmtewisselaar 31%",0.85,IF(H12="warmtewisselaar 37%",1,IF(H12="warmtewisselaar 50%",1.4)))),IF(E14="opfok vleeskuikenouderdieren",IF(H12="warmtewisselaar 13%",0.35,IF(H12="warmtewisselaar 31%",0.85,IF(H12="warmtewisselaar 37%",1.1,IF(H12="warmtewisselaar 50%",1.45)))),IF(D33="vleeskuikenouderdieren",IF(H12="warmtewisselaar 13%",0.5,IF(H12="warmtewisselaar 31%",1.2,IF(H12="warmtewisselaar 37%",1.5,IF(H12="warmtewisselaar 50%",2.1))))))+IF(E14="vleeskuikens",IF(H12="warmtewisselaar 13%",0.3,IF(H12="warmtewisselaar 31%",0.75,IF(H12="warmtewisselaar 37%",1,IF(H12="warmtewisselaar 50%",1.45,0)))))+IF(E14="vleeseenden",IF(H12="warmtewisselaar 13%",0.7,IF(H12="warmtewisselaar 31%",1.9,IF(H12="warmtewisselaar 37%",2.3,IF(H12="warmtewisselaar 50%",3.6)))))))+IF(E14="kalkoen hennen",IF(H12="warmtewisselaar 13%",0.9,IF(H12="warmtewisselaar 31%",2.5,IF(H12="warmtewisselaar 37%",3,IF(H12="warmtewisselaar 50%",4.3)))))+IF(E14="kalkoen hanen",IF(H12="warmtewisselaar 13%",2.2,IF(H12="warmtewisselaar 31%",5.3,IF(H12="warmtewisselaar 37%",6.2,IF(H12="warmtewisselaar 50%",9)))))),0) -> 0
D33: =IF(E14="OPFOK LEGHENNEN KOOI/KOLONIE","opfok leghennen",IF(E14="opfok leghennen grondhuisvesting","opfok leghennen",IF(E14="opfok leghennen voliere","opfok leghennen",IF(E14="leghennen verrijkte kooi/kolonie","leghennen",IF(E14="leghennen grondhuisvesting","leghennen",IF(E14="leghennen voliere","leghennen",IF(E14="vleeskuikenouderdieren groepskooi","vleeskuikenouderdieren",IF(E14="vleeskuikenouderdieren grondhuisvesting","vleeskuikenouderdieren",IF(E14="vleeskuikenouderdieren voliere","vleeskuikenouderdieren",0))))))))) -> 0
L42: Kies ALLE VENTILATIELUCHT ivm vereiste NH3 reductie

Sheet wisselend debiet_eend (hidden)
A1: Lft (dg) | B1: Gew. (kg) | C1: MG | D1: Voer (g/d) | E1: Totaal deb update (m3/d/u) | F1: Hoofd deb update minus WW (m3/d/u) | G1: Deb. w.wisselaar (m3/u/d) | H1: Deb. Alleen Stoffilter (m3/u/d) | I1: Deb. Ww en Stoffilter (m3/u/d) | J1: PM10 conc (mg/m3) | K1: #dieren | L1: Emissie PM10 zonder reductie (g/dpl/j) | M1: Emissie alleen stoffilter | N1: Emissie (g/dpl/jr) bij ..% red. WW en ..%red hoofddebiet | O1: Emissie alleen ww | P1: Emissie ww + stand alone stoffilter | Q1: Emissie Stoffilter en ww achter elkaar | R1: Emissie na overige techniek (g/dpl/jr) | AB1: Berekeningen bij uitbroeden/opfokken en overplaatsen
J2: Achtergrond | R2: 0 | S2: reductie in de stal
J3: =+J4 -> 0 | R3: 0.8 | S3: reductie wwlaar zonder droge stoffilters
R4: =IF(VLEESEENDEN!$H$16=0,VLEESEENDEN!F14,VLEESEENDEN!$H$16) -> 0 | S4: max. debiet door wwlaar/droge stoffilters (m3/u/d) | AC4: zonder reductie | AE4: met reductie
R5: =VLEESEENDEN!$F$20 -> 0 | S5: max. debiet stoffilter stand alone | AB5: verhouding plaatsen | AC5: 1:2 | AD5: 1:1 | AE5: 1:2 | AF5: 1:1
R6: =IF(VLEESEENDEN!$L$20="chemische wasser 35%",35%,IF(VLEESEENDEN!$L$20="chemische wasser 70%",70%,IF(VLEESEENDEN!$L$20="bio wasser 60%",60%,IF(VLEESEENDEN!$L$20="bio wasser 75%",75%,IF(VLEESEENDEN!$L$20="biofilter",80%,IF(VLEESEENDEN!$L$20="waterluchtwassysteem",33%,IF(VLEESEENDEN!$L$20="droogfilterwand",40%,IF(VLEESEENDEN!$L$20="ionisatiefilter",57%,IF(VLEESEENDEN!$L$20="LUCHTCONDITIONERINGSUNIT",IF(VLEESEENDEN!$F$24="Niet alle lucht gaat door luchtconditioneringsunit, dus niet combineren met droog stoffilter","error",80%),0))))))))) -> 0 | S6: reductie overige techniek ALLE lucht
P7: =Q8+P8 -> 0 | R7: =VLEESEENDEN!$F$14 -> 0 | S7: max. debiet stoffilter met ww | AA7: trad. | AB7: uitbroed/opfok-systeem
L8: =$L$64+1 -> 1 | M8: =MIN(95%,$M$64) -> 0 | N8: =$N$64 -> 0 | O8: =ROUND(IF(O64<22%,O64/90%,IF(O64<34.5%,$O$64/94.3%,IF(O64<45%,$O$64/98.4%,O64))),2) -> 0 | P8: =MIN(95%,$P$64) -> 0 | Q8: =MAX(IF(Q64<22%,Q64/94%,IF(Q64<35%,$Q$64/94.5%,IF(Q64<40%,$Q$64/96%,IF(Q64<60%,$Q$64/98%,Q64)))),Q64) -> 0 | R8: =ROUND($R$64,3) -> 0 | S8: =ROUND($S$64,3) -> 0 | T8: =ROUND($T$64,3) -> 0 | U8: =$U$64 -> 0 | V8: =$V$64 -> 0 | W8: =$W$64 -> 0 | X8: gemiddelde reductie | AB8: Overplaatsen op .... dagen | AC8: 13 | AD8: 19 | AE8: 13 | AF8: 19
A9: 0 | K9: 1 | P9: =O8+P8 -> 0 | R9: lucht ww i.c.m. filter via techniek | S9: lucht ww niet via techniek | T9: lucht ww niet via techniek wel via stoffilter | U9: ww incl stoffilter via techniek | V9: beiden niet via techniek | W9: ww wel via overige techniek | AB9: dagen eieren | AC9: 3 | AD9: 3 | AE9: 3 | AF9: 3
A10: 1 | B10: 75 | E10: =0.000000000384*B10^3-0.000000342064*B10^2+0.001060852819*B10+0.088327034395 -> 0.1661288858 | F10: =E10-G10 -> 0.1661288858 | G10: =IF($R$4>0<E10,E10,IF($R$4>E10,E10,$R$4)) -> 0 | H10: =IF(E10<$R$5,E10-G10,$R$5) -> 0 | I10: =MIN(R$5,E10-G10) -> 0 | J10: 0.3364 | K10: 1 | L10: =J10/1000*E10*24*365 -> 0.489559233 | M10: =IF(E10>$R$5,L10-(R$5)/E10*L10*97%,L10-(E10)/E10*L10*97%) -> 0.489559233 | N10: =(((($J10*(1-$R$2))-$J$3)/1000*$F10*24*365*$K10)*(1-R$5))+(((($J10*(1-$R$2))-$J$3)/1000*$G10*24*365*$K10)*(1-R$3)) -> 0.489559233 | O10: =(((($J10)-$J$3)/1000*$F10*24*365*$K10))+(((($J10)-$J$3)/1000*$G10*24*365*$K10)*(1-R$3)) -> 0.489559233 | P10: =IF(I10=0,L10,IF(I10>$R$5,L10-(R$5)/E10*L10*97%,L10-(I10)/E10*L10*97%)) -> 0.489559233 | Q10: =(((($J10)-$J$3)/1000*$F10*24*365*$K10))+(((($J10)-$J$3)/1000*$G10*24*365*$K10)*(1-95%)) -> 0.489559233 | R10: =IF(E10-G10-H10>=0,L10-((E10-G10*80%-H10*95%)/E10*L10)*$R$6,IF(G10>H10,L10-((E10-G10)/E10*L10)*$R$6,L10-((E10-H10)/E10*L10)*$R$6)) -> 0.489559233 | S10: =IF(E10-G10-H10>=0,L10-((E10-G10-H10)/E10*L10)*$R$6,IF(G10>H10,L10-((E10-G10)/E10*L10)*$R$6,L10-((E10-H10)/E10*L10)*$R$6)) -> 0.489559233 | T10: =L10-(E10-H10)/E10*L10*$R$6 -> 0.489559233 | U10: =IF(VLEESEENDEN!$H$15="ja",L10-((E10-G10*95%-I10)/E10*L10)*$R$6,L10-((E10-G10*80%-I10)/E10*L10)*$R$6) -> 0.489559233 | V10: =L10-((E10-G10-I10)/E10*L10)*$R$6 -> 0.489559233 | W10: =L10-(E10-H10)/E10*L10*$R$6 -> 0.489559233 | X10: =M10/L10 -> 1 | AB10: dagen leegstand | AC10: =AC11-AC8-AC9 -> 3 | AD10: 11 | AE10: =AE11-AE8-AE9 -> 3 | AF10: =AF11-AF8-AF9 -> 11
A11: 2 | B11: 100 | E11: =0.000000000384*B11^3-0.000000342064*B11^2+0.001060852819*B11+0.088327034395 -> 0.1913756763 | F11: =E11-G11 -> 0.1913756763 | G11: 0 | H11: 0 | I11: 0 | J11: 0.4814472395 | K11: 1 | L11: =J11/1000*E11*24*365 -> 0.8071226696 | M11: =IF(E11>$R$5,L11-(R$5)/E11*L11*97%,L11-(E11)/E11*L11*97%) -> 0.8071226696 | N11: 0.8071226696 | O11: =(((($J11)-$J$3)/1000*$F11*24*365*$K11))+(((($J11*(1-$R$2))-$J$3)/1000*$G11*24*365*$K11)*(1-R$3)) -> 0.8071226696 | P11: 0.8071226696 | Q11: =(((($J11)-$J$3)/1000*$F11*24*365*$K11))+(((($J11)-$J$3)/1000*$G11*24*365*$K11)*(1-95%)) -> 0.8071226696 | R11: =IF(E11-G11-H11>=0,L11-((E11-G11*80%-H11*95%)/E11*L11)*$R$6,IF(G11>H11,L11-((E11-G11)/E11*L11)*$R$6,L11-((E11-H11)/E11*L11)*$R$6)) -> 0.8071226696 | S11: =IF(E11-G11-H11>=0,L11-((E11-G11-H11)/E11*L11)*$R$6,IF(G11>H11,L11-((E11-G11)/E11*L11)*$R$6,L11-((E11-H11)/E11*L11)*$R$6)) -> 0.8071226696 | T11: =L11-(E11-H11)/E11*L11*$R$6 -> 0.8071226696 | U11: =IF(VLEESEENDEN!$H$15="ja",L11-((E11-G11*95%-I11)/E11*L11)*$R$6,L11-((E11-G11*80%-I11)/E11*L11)*$R$6) -> 0.8071226696 | V11: 0.8071226696 | W11: =L11-(E11-H11)/E11*L11*$R$6 -> 0.8071226696 | X11: =M11/L11 -> 1 | AB11: dagen/ronde | AC11: 19 | AD11: 33 | AE11: 19 | AF11: 33
A12: 3 | B12: 125 | E12: 0.2163388868 | F12: 0.2163388868 | G12: 0 | H12: 0 | I12: 0 | J12: 0.5937766294 | K12: 1 | L12: 1.125283101 | M12: 1.125283101 | N12: 1.125283101 | O12: 1.125283101 | P12: 1.125283101 | Q12: 1.125283101 | R12: 1.125283101 | S12: 1.125283101 | T12: 1.125283101 | U12: =IF(VLEESEENDEN!$H$15="ja",L12-((E12-G12*95%-I12)/E12*L12)*$R$6,L12-((E12-G12*80%-I12)/E12*L12)*$R$6) -> 1.125283101 | V12: 1.125283101 | W12: 1.125283101 | X12: 1 | AB12: # rondes/jr | AC12: =365/AC11 -> 19.21052632 | AD12: 11.06060606 | AE12: =365/AE11 -> 19.21052632 | AF12: =365/AF11 -> 11.06060606
A13: 4 | B13: 150 | E13: 0.2410545172 | F13: 0.2410545172 | G13: 0 | H13: 0 | I13: 0 | J13: 0.6890352093 | K13: 1 | L13: 1.454992636 | M13: 1.454992636 | N13: 1.454992636 | O13: 1.454992636 | P13: 1.454992636 | Q13: 1.454992636 | R13: 1.454992636 | S13: 1.454992636 | T13: 1.454992636 | U13: =IF(VLEESEENDEN!$H$15="ja",L13-((E13-G13*95%-I13)/E13*L13)*$R$6,L13-((E13-G13*80%-I13)/E13*L13)*$R$6) -> 1.454992636 | V13: 1.454992636 | W13: 1.454992636 | X13: 1 | AB13: emissie/ronde (gam) | AC13: =AVERAGE(L10:L22)/$AA$23 -> 0.4172365764 | AD13: =AVERAGE(L10:L28)/$AA$23 -> 0.7663799165 | AE13: =AVERAGE(N10:N22)/$AA$23 -> 0.4172365764 | AF13: =AVERAGE(N10:N28)/$AA$23 -> 0.7663799165
A14: 5 | B14: 175 | E14: 0.2655585677 | F14: 0.2655585677 | G14: 0 | H14: 0 | I14: 0 | J14: 0.7733271779 | K14: 1 | L14: 1.798985642 | M14: 1.798985642 | N14: 1.798985642 | O14: 1.798985642 | P14: 1.798985642 | Q14: 1.798985642 | R14: 1.798985642 | S14: 1.798985642 | T14: 1.798985642 | U14: =IF(VLEESEENDEN!$H$15="ja",L14-((E14-G14*95%-I14)/E14*L14)*$R$6,L14-((E14-G14*80%-I14)/E14*L14)*$R$6) -> 1.798985642 | V14: 1.798985642 | W14: 1.798985642 | X14: 1 | AB14: emissie/dpl/jr (gram) | AC14: =AC13*AC12 -> 8.015334231 | AD14: =AD13*AD12 -> 8.476626349 | AE14: =AE13*AE12 -> 8.015334231 | AF14: =AF13*AF12 -> 8.476626349
A15: 6 | B15: 200 | E15: 0.2898870382 | F15: 0.2898870382 | G15: 0 | H15: 0 | I15: 0 | J15: 0.8497982136 | K15: 1 | L15: 2.157986468 | M15: 2.157986468 | N15: 2.157986468 | O15: 2.157986468 | P15: 2.157986468 | Q15: 2.157986468 | R15: 2.157986468 | S15: 2.157986468 | T15: 2.157986468 | U15: =IF(VLEESEENDEN!$H$15="ja",L15-((E15-G15*95%-I15)/E15*L15)*$R$6,L15-((E15-G15*80%-I15)/E15*L15)*$R$6) -> 2.157986468 | V15: 2.157986468 | W15: 2.157986468 | X15: 1 | AB15: vervolghuisvesting
A16: 7 | B16: 225 | E16: 0.3140759287 | F16: 0.3140759287 | G16: 0 | H16: 0 | I16: 0 | J16: 0.9203238852 | K16: 1 | L16: 2.532091831 | M16: 2.532091831 | N16: 2.532091831 | O16: 2.532091831 | P16: 2.532091831 | Q16: 2.532091831 | R16: 2.532091831 | S16: 2.532091831 | T16: 2.532091831 | U16: =IF(VLEESEENDEN!$H$15="ja",L16-((E16-G16*95%-I16)/E16*L16)*$R$6,L16-((E16-G16*80%-I16)/E16*L16)*$R$6) -> 2.532091831 | V16: 2.532091831 | W16: 2.532091831 | X16: 1 | AB16: # dagen
A17: 8 | B17: 250 | E17: 0.3381612391 | F17: 0.3381612391 | G17: 0 | H17: 0 | I17: 0 | J17: 0.9861299031 | K17: 1 | L17: 2.921205171 | M17: 2.921205171 | N17: 2.921205171 | O17: 2.921205171 | P17: 2.921205171 | Q17: 2.921205171 | R17: 2.921205171 | S17: 2.921205171 | T17: 2.921205171 | U17: =IF(VLEESEENDEN!$H$15="ja",L17-((E17-G17*95%-I17)/E17*L17)*$R$6,L17-((E17-G17*80%-I17)/E17*L17)*$R$6) -> 2.921205171 | V17: 2.921205171 | W17: 2.921205171 | X17: 1 | AB17: Groeiperiode | AC17: 42 | AD17: 42 | AE17: 42 | AF17: 42
A18: 9 | B18: 300 | E18: 0.3861651201 | F18: 0.3861651201 | G18: 0 | H18: 0 | I18: 0 | J18: 1.048069814 | K18: 1 | L18: 3.54541733 | M18: 3.54541733 | N18: 3.54541733 | O18: 3.54541733 | P18: 3.54541733 | Q18: 3.54541733 | R18: 3.54541733 | S18: 3.54541733 | T18: 3.54541733 | U18: =IF(VLEESEENDEN!$H$15="ja",L18-((E18-G18*95%-I18)/E18*L18)*$R$6,L18-((E18-G18*80%-I18)/E18*L18)*$R$6) -> 3.54541733 | V18: 3.54541733 | W18: 3.54541733 | X18: 1 | AB18: Patio | AC18: =+AC8 -> 13 | AD18: =+AD8 -> 19 | AE18: =+AE8 -> 13 | AF18: =+AF8 -> 19
A19: 10 | B19: 350 | E19: 0.434186681 | F19: 0.434186681 | G19: 0 | H19: 0 | I19: 0 | J19: 1.106766454 | K19: 1 | L19: 4.209558898 | M19: 4.209558898 | N19: 4.209558898 | O19: 4.209558898 | P19: 4.209558898 | Q19: 4.209558898 | R19: 4.209558898 | S19: 4.209558898 | T19: 4.209558898 | U19: =IF(VLEESEENDEN!$H$15="ja",L19-((E19-G19*95%-I19)/E19*L19)*$R$6,L19-((E19-G19*80%-I19)/E19*L19)*$R$6) -> 4.209558898 | V19: 4.209558898 | W19: 4.209558898 | X19: 1 | AA19: 42 | AB19: VVH | AC19: =AC17-AC18 -> 29 | AD19: 23 | AE19: =AE17-AE18 -> 29 | AF19: =AF17-AF18 -> 23
A20: 11 | B20: 400 | E20: 0.482513922 | F20: 0.482513922 | G20: 0 | H20: 0 | I20: 0 | J20: 1.162690928 | K20: 1 | L20: 4.914487544 | M20: 4.914487544 | N20: 4.914487544 | O20: 4.914487544 | P20: 4.914487544 | Q20: 4.914487544 | R20: 4.914487544 | S20: 4.914487544 | T20: 4.914487544 | U20: =IF(VLEESEENDEN!$H$15="ja",L20-((E20-G20*95%-I20)/E20*L20)*$R$6,L20-((E20-G20*80%-I20)/E20*L20)*$R$6) -> 4.914487544 | V20: 4.914487544 | W20: 4.914487544 | X20: 1 | AA20: 0 | AB20: Leegstand na vvh | AC20: 10 | AD20: 10 | AE20: 10 | AF20: 10
A21: 12 | B21: 450 | E21: 0.5314348429 | F21: 0.5314348429 | G21: 0 | H21: 0 | I21: 0 | J21: 1.216209881 | K21: 1 | L21: 5.661906051 | M21: 5.661906051 | N21: 5.661906051 | O21: 5.661906051 | P21: 5.661906051 | Q21: 5.661906051 | R21: 5.661906051 | S21: 5.661906051 | T21: 5.661906051 | U21: =IF(VLEESEENDEN!$H$15="ja",L21-((E21-G21*95%-I21)/E21*L21)*$R$6,L21-((E21-G21*80%-I21)/E21*L21)*$R$6) -> 5.661906051 | V21: 5.661906051 | W21: 5.661906051 | X21: 1 | AA21: 42 | AB21: # ronden | AC21: =365/(AC19+AC20) -> 9.358974359 | AD21: =365/(AD19+AD20) -> 11.06060606 | AE21: =365/(AE19+AE20) -> 9.358974359 | AF21: =365/(AF19+AF20) -> 11.06060606
A22: 13 | B22: 500 | E22: 0.5812374439 | F22: 0.5812374439 | G22: 0 | H22: 0 | I22: 0 | J22: 1.267615348 | K22: 1 | L22: 6.454241022 | M22: 6.454241022 | N22: 6.454241022 | O22: 6.454241022 | P22: 6.454241022 | Q22: 6.454241022 | R22: 6.454241022 | S22: 6.454241022 | T22: 6.454241022 | U22: =IF(VLEESEENDEN!$H$15="ja",L22-((E22-G22*95%-I22)/E22*L22)*$R$6,L22-((E22-G22*80%-I22)/E22*L22)*$R$6) -> 6.454241022 | V22: 6.454241022 | W22: 6.454241022 | X22: 1 | AA22: 10 | AB22: emissie/ronde (gram) | AC22: =AVERAGE(L23:L51)/$AA$23 -> 9.246058641 | AD22: =AVERAGE(L29:L51)/$AA$23 -> 11.26080685 | AE22: =AVERAGE(N23:N51)/$AA$23 -> 9.246058641 | AF22: =AVERAGE(N29:N51)/$AA$23 -> 11.26080685
A23: 14 | B23: 550 | E23: 0.6322097248 | F23: 0.6322097248 | G23: 0 | H23: 0 | I23: 0 | J23: 1.317144453 | K23: 1 | L23: 7.294553021 | M23: 7.294553021 | N23: 7.294553021 | O23: 7.294553021 | P23: 7.294553021 | Q23: 7.294553021 | R23: 7.294553021 | S23: 7.294553021 | T23: 7.294553021 | U23: =IF(VLEESEENDEN!$H$15="ja",L23-((E23-G23*95%-I23)/E23*L23)*$R$6,L23-((E23-G23*80%-I23)/E23*L23)*$R$6) -> 7.294553021 | V23: 7.294553021 | W23: 7.294553021 | X23: 1 | AA23: =365/(AA21+AA22) -> 7.019230769 | AB23: emissie/dpl/jr (gram) | AC23: =AC22*AC21 -> 86.53362574 | AD23: =AD22*AD21 -> 124.5513485 | AE23: =AE22*AE21 -> 86.53362574 | AF23: =AF22*AF21 -> 124.5513485
A24: 15 | B24: 600 | E24: 0.6846396858 | F24: 0.6846396858 | G24: 0 | H24: 0 | I24: 0 | J24: 1.364992881 | K24: 1 | L24: 8.186467882 | M24: 8.186467882 | N24: 8.186467882 | O24: 8.186467882 | P24: 8.186467882 | Q24: 8.186467882 | R24: 8.186467882 | S24: 8.186467882 | T24: 8.186467882 | U24: =IF(VLEESEENDEN!$H$15="ja",L24-((E24-G24*95%-I24)/E24*L24)*$R$6,L24-((E24-G24*80%-I24)/E24*L24)*$R$6) -> 8.186467882 | V24: 8.186467882 | W24: 8.186467882 | X24: 1 | AA24: =AA22/(AA21+AA22) -> 0.1923076923 | AB24: samen (gr/dpl/jr) | AC24: =(AC14+(AC23*2))/3 -> 60.3608619 | AD24: =(AD14+AD23)/2 -> 66.51398745 | AE24: =(AE14+(AE23*2))/3 -> 60.3608619 | AF24: =(AF14+AF23)/2 -> 66.51398745
A25: 16 | B25: 685 | E25: 0.777931179 | F25: 0.777931179 | G25: 0 | H25: 0 | I25: 0 | J25: 1.411324375 | K25: 1 | L25: 9.617719935 | M25: 9.617719935 | N25: 9.617719935 | O25: 9.617719935 | P25: 9.617719935 | Q25: 9.617719935 | R25: 9.617719935 | S25: 9.617719935 | T25: 9.617719935 | U25: =IF(VLEESEENDEN!$H$15="ja",L25-((E25-G25*95%-I25)/E25*L25)*$R$6,L25-((E25-G25*80%-I25)/E25*L25)*$R$6) -> 9.617719935 | V25: 9.617719935 | W25: 9.617719935 | X25: 1 | AB25: verschil t.o.v. trad. | AC25: =(AC24/$L$63) -> 1.02080608 | AD25: =(AD24/$L$63) -> 1.124866025
A26: 17 | B26: 770 | E26: 0.8776826314 | F26: 0.8776826314 | G26: 0 | H26: 0 | I26: 0 | J26: 1.4562776 | K26: 1 | L26: 11.19659011 | M26: 11.19659011 | N26: 11.19659011 | O26: 11.19659011 | P26: 11.19659011 | Q26: 11.19659011 | R26: 11.19659011 | S26: 11.19659011 | T26: 11.19659011 | U26: =IF(VLEESEENDEN!$H$15="ja",L26-((E26-G26*95%-I26)/E26*L26)*$R$6,L26-((E26-G26*80%-I26)/E26*L26)*$R$6) -> 11.19659011 | V26: 11.19659011 | W26: 11.19659011 | X26: 1 | AB26: reductie | AE26: =(AC24-AE24)/AC24 -> 0 | AF26: =(AD24-AF24)/AD24 -> 0
A27: 18 | B27: 855 | E27: 0.985308987 | F27: 0.985308987 | G27: 0 | H27: 0 | I27: 0 | J27: 1.499971222 | K27: 1 | L27: 12.94671169 | M27: 12.94671169 | N27: 12.94671169 | O27: 12.94671169 | P27: 12.94671169 | Q27: 12.94671169 | R27: 12.94671169 | S27: 12.94671169 | T27: 12.94671169 | U27: =IF(VLEESEENDEN!$H$15="ja",L27-((E27-G27*95%-I27)/E27*L27)*$R$6,L27-((E27-G27*80%-I27)/E27*L27)*$R$6) -> 12.94671169 | V27: 12.94671169 | W27: 12.94671169 | X27: 1
A28: 19 | B28: 940 | E28: 1.10222519 | F28: 1.10222519 | G28: 0 | H28: 0 | I28: 0 | J28: 1.542507732 | K28: 1 | L28: 14.89367208 | M28: 14.89367208 | N28: 14.89367208 | O28: 14.89367208 | P28: 14.89367208 | Q28: 14.89367208 | R28: 14.89367208 | S28: 14.89367208 | T28: 14.89367208 | U28: =IF(VLEESEENDEN!$H$15="ja",L28-((E28-G28*95%-I28)/E28*L28)*$R$6,L28-((E28-G28*80%-I28)/E28*L28)*$R$6) -> 14.89367208 | V28: 14.89367208 | W28: 14.89367208 | X28: 1
A29: 20 | B29: 1025 | E29: 1.229846184 | F29: 1.229846184 | G29: 0 | H29: 0 | I29: 0 | J29: 1.583976379 | K29: 1 | L29: 17.06489439 | M29: 17.06489439 | N29: 17.06489439 | O29: 17.06489439 | P29: 17.06489439 | Q29: 17.06489439 | R29: 17.06489439 | S29: 17.06489439 | T29: 17.06489439 | U29: =IF(VLEESEENDEN!$H$15="ja",L29-((E29-G29*95%-I29)/E29*L29)*$R$6,L29-((E29-G29*80%-I29)/E29*L29)*$R$6) -> 17.06489439 | V29: 17.06489439 | W29: 17.06489439 | X29: 1
A30: 21 | B30: 1110 | E30: 1.369586913 | F30: 1.369586913 | G30: 0 | H30: 0 | I30: 0 | J30: 1.624455453 | K30: 1 | L30: 19.48953646 | M30: 19.48953646 | N30: 19.48953646 | O30: 19.48953646 | P30: 19.48953646 | Q30: 19.48953646 | R30: 19.48953646 | S30: 19.48953646 | T30: 19.48953646 | U30: =IF(VLEESEENDEN!$H$15="ja",L30-((E30-G30*95%-I30)/E30*L30)*$R$6,L30-((E30-G30*80%-I30)/E30*L30)*$R$6) -> 19.48953646 | V30: 19.48953646 | W30: 19.48953646 | X30: 1
A31: 22 | B31: 1200 | E31: 1.532330257 | F31: 1.532330257 | G31: 0 | H31: 0 | I31: 0 | J31: 1.664014083 | K31: 1 | L31: 22.33641557 | M31: 22.33641557 | N31: 22.33641557 | O31: 22.33641557 | P31: 22.33641557 | Q31: 22.33641557 | R31: 22.33641557 | S31: 22.33641557 | T31: 22.33641557 | U31: =IF(VLEESEENDEN!$H$15="ja",L31-((E31-G31*95%-I31)/E31*L31)*$R$6,L31-((E31-G31*80%-I31)/E31*L31)*$R$6) -> 22.33641557 | V31: 22.33641557 | W31: 22.33641557 | X31: 1
A32: 23 | B32: 1285 | E32: 1.701478742 | F32: 1.701478742 | G32: 0 | H32: 0 | I32: 0 | J32: 1.702713675 | K32: 1 | L32: 25.37886863 | M32: 25.37886863 | N32: 25.37886863 | O32: 25.37886863 | P32: 25.37886863 | Q32: 25.37886863 | R32: 25.37886863 | S32: 25.37886863 | T32: 25.37886863 | U32: =IF(VLEESEENDEN!$H$15="ja",L32-((E32-G32*95%-I32)/E32*L32)*$R$6,L32-((E32-G32*80%-I32)/E32*L32)*$R$6) -> 25.37886863 | V32: 25.37886863 | W32: 25.37886863 | X32: 1
A33: 24 | B33: 1370 | E33: 1.887075027 | F33: 1.887075027 | G33: 0 | H33: 0 | I33: 0 | J33: 1.740609066 | K33: 1 | L33: 28.77362073 | M33: 28.77362073 | N33: 28.77362073 | O33: 28.77362073 | P33: 28.77362073 | Q33: 28.77362073 | R33: 28.77362073 | S33: 28.77362073 | T33: 28.77362073 | U33: =IF(VLEESEENDEN!$H$15="ja",L33-((E33-G33*95%-I33)/E33*L33)*$R$6,L33-((E33-G33*80%-I33)/E33*L33)*$R$6) -> 28.77362073 | V33: 28.77362073 | W33: 28.77362073 | X33: 1
A34: 25 | B34: 1455 | E34: 2.090534054 | F34: 2.090534054 | G34: 0 | H34: 0 | I34: 0 | J34: 1.777749477 | K34: 1 | L34: 32.5560654 | M34: 32.5560654 | N34: 32.5560654 | O34: 32.5560654 | P34: 32.5560654 | Q34: 32.5560654 | R34: 32.5560654 | S34: 32.5560654 | T34: 32.5560654 | U34: =IF(VLEESEENDEN!$H$15="ja",L34-((E34-G34*95%-I34)/E34*L34)*$R$6,L34-((E34-G34*80%-I34)/E34*L34)*$R$6) -> 32.5560654 | V34: =L34-((E34-G34-I34)/E34*L34)*$R$6 -> 32.5560654 | W34: 32.5560654 | X34: 1
A35: 26 | B35: 1540 | E35: 2.313270769 | F35: 2.313270769 | G35: 0 | H35: =IF(E35<$R$5,E35-G35,$R$5) -> 0 | I35: 0 | J35: 1.814179281 | K35: 1 | L35: 36.76298601 | M35: 36.76298601 | N35: 36.76298601 | O35: 36.76298601 | P35: 36.76298601 | Q35: 36.76298601 | R35: 36.76298601 | S35: 36.76298601 | T35: 36.76298601 | U35: =IF(VLEESEENDEN!$H$15="ja",L35-((E35-G35*95%-I35)/E35*L35)*$R$6,L35-((E35-G35*80%-I35)/E35*L35)*$R$6) -> 36.76298601 | V35: =L35-((E35-G35-I35)/E35*L35)*$R$6 -> 36.76298601 | W35: 36.76298601 | X35: 1
A36: 27 | B36: 1625 | E36: 2.556700115 | F36: 2.556700115 | G36: =IF($R$4>0<E36,E36,IF($R$4>E36,E36,$R$4)) -> 0 | H36: =IF(E36<$R$5,E36-G36,$R$5) -> 0 | I36: 0 | J36: 1.84993865 | K36: 1 | L36: 41.43250802 | M36: 41.43250802 | N36: 41.43250802 | O36: 41.43250802 | P36: 41.43250802 | Q36: 41.43250802 | R36: 41.43250802 | S36: 41.43250802 | T36: 41.43250802 | U36: =IF(VLEESEENDEN!$H$15="ja",L36-((E36-G36*95%-I36)/E36*L36)*$R$6,L36-((E36-G36*80%-I36)/E36*L36)*$R$6) -> 41.43250802 | V36: 41.43250802 | W36: 41.43250802 | X36: 1
A37: 28 | B37: 1710 | E37: 2.822237036 | F37: 2.822237036 | G37: =IF($R$4>0<E37,E37,IF($R$4>E37,E37,$R$4)) -> 0 | H37: 0 | I37: 0 | J37: 1.885064093 | K37: 1 | L37: 46.60405584 | M37: 46.60405584 | N37: 46.60405584 | O37: 46.60405584 | P37: 46.60405584 | Q37: 46.60405584 | R37: 46.60405584 | S37: 46.60405584 | T37: 46.60405584 | U37: =IF(VLEESEENDEN!$H$15="ja",L37-((E37-G37*95%-I37)/E37*L37)*$R$6,L37-((E37-G37*80%-I37)/E37*L37)*$R$6) -> 46.60405584 | V37: 46.60405584 | W37: 46.60405584 | X37: 1
A38: 29 | B38: 1800 | E38: 3.129062749 | F38: 3.129062749 | G38: 0 | H38: 0 | I38: 0 | J38: 1.919588907 | K38: 1 | L38: 52.61706389 | M38: 52.61706389 | N38: =(((($J38*(1-$R$2))-$J$3)/1000*$F38*24*365*$K38)*(1-R$4))+(((($J38*(1-$R$2))-$J$3)/1000*$G38*24*365*$K38)*(1-R$3)) -> 52.61706389 | O38: 52.61706389 | P38: 52.61706389 | Q38: 52.61706389 | R38: 52.61706389 | S38: 52.61706389 | T38: 52.61706389 | U38: =IF(VLEESEENDEN!$H$15="ja",L38-((E38-G38*95%-I38)/E38*L38)*$R$6,L38-((E38-G38*80%-I38)/E38*L38)*$R$6) -> 52.61706389 | V38: 52.61706389 | W38: 52.61706389 | X38: 1
A39: 30 | B39: 1885 | E39: 3.444570626 | F39: 3.444570626 | G39: 0 | H39: 0 | I39: 0 | J39: 1.953543562 | K39: 1 | L39: 58.94708044 | M39: 58.94708044 | N39: =(((($J39*(1-$R$2))-$J$3)/1000*$F39*24*365*$K39)*(1-R$4))+(((($J39*(1-$R$2))-$J$3)/1000*$G39*24*365*$K39)*(1-R$3)) -> 58.94708044 | O39: 58.94708044 | P39: 58.94708044 | Q39: 58.94708044 | R39: 58.94708044 | S39: 58.94708044 | T39: 58.94708044 | U39: =IF(VLEESEENDEN!$H$15="ja",L39-((E39-G39*95%-I39)/E39*L39)*$R$6,L39-((E39-G39*80%-I39)/E39*L39)*$R$6) -> 58.94708044 | V39: 58.94708044 | W39: 58.94708044 | X39: 1
A40: 31 | B40: 1970 | E40: 3.786514142 | F40: 3.786514142 | G40: 0 | H40: 0 | I40: 0 | J40: 1.986956024 | K40: 1 | L40: 65.90706085 | M40: 65.90706085 | N40: =(((($J40*(1-$R$2))-$J$3)/1000*$F40*24*365*$K40)*(1-R$4))+(((($J40*(1-$R$2))-$J$3)/1000*$G40*24*365*$K40)*(1-R$3)) -> 65.90706085 | O40: 65.90706085 | P40: 65.90706085 | Q40: 65.90706085 | R40: 65.90706085 | S40: 65.90706085 | T40: 65.90706085 | U40: =IF(VLEESEENDEN!$H$15="ja",L40-((E40-G40*95%-I40)/E40*L40)*$R$6,L40-((E40-G40*80%-I40)/E40*L40)*$R$6) -> 65.90706085 | V40: 65.90706085 | W40: 65.90706085 | X40: 1
A41: 32 | B41: 2055 | E41: 4.156308242 | F41: 4.156308242 | G41: 0 | H41: 0 | I41: 0 | J41: 2.019852034 | K41: 1 | L41: 73.54131825 | M41: 73.54131825 | N41: =(((($J41*(1-$R$2))-$J$3)/1000*$F41*24*365*$K41)*(1-R$5))+(((($J41*(1-$R$2))-$J$3)/1000*$G41*24*365*$K41)*(1-R$3)) -> 73.54131825 | O41: 73.54131825 | P41: 73.54131825 | Q41: 73.54131825 | R41: 73.54131825 | S41: 73.54131825 | T41: 73.54131825 | U41: =IF(VLEESEENDEN!$H$15="ja",L41-((E41-G41*95%-I41)/E41*L41)*$R$6,L41-((E41-G41*80%-I41)/E41*L41)*$R$6) -> 73.54131825 | V41: 73.54131825 | W41: 73.54131825 | X41: 1
A42: 33 | B42: 2140 | E42: 4.555367869 | F42: 4.555367869 | G42: 0 | H42: 0 | I42: =MIN(R$5,E42-G42) -> 0 | J42: 2.052255352 | K42: 1 | L42: 81.89529604 | M42: 81.89529604 | N42: 81.89529604 | O42: 81.89529604 | P42: 81.89529604 | Q42: 81.89529604 | R42: 81.89529604 | S42: 81.89529604 | T42: 81.89529604 | U42: =IF(VLEESEENDEN!$H$15="ja",L42-((E42-G42*95%-I42)/E42*L42)*$R$6,L42-((E42-G42*80%-I42)/E42*L42)*$R$6) -> 81.89529604 | V42: 81.89529604 | W42: 81.89529604 | X42: 1
A43: 34 | B43: 2225 | E43: 4.985107967 | F43: 4.985107967 | G43: 0 | H43: 0 | I43: 0 | J43: 2.084187961 | K43: 1 | L43: 91.01554161 | M43: 91.01554161 | N43: 91.01554161 | O43: 91.01554161 | P43: 91.01554161 | Q43: 91.01554161 | R43: 91.01554161 | S43: 91.01554161 | T43: 91.01554161 | U43: =IF(VLEESEENDEN!$H$15="ja",L43-((E43-G43*95%-I43)/E43*L43)*$R$6,L43-((E43-G43*80%-I43)/E43*L43)*$R$6) -> 91.01554161 | V43: 91.01554161 | W43: 91.01554161 | X43: 1
A44: 35 | B44: 2310 | E44: 5.44694348 | F44: 5.44694348 | G44: 0 | H44: 0 | I44: 0 | J44: 2.115670252 | K44: 1 | L44: 100.9496819 | M44: 100.9496819 | N44: 100.9496819 | O44: 100.9496819 | P44: 100.9496819 | Q44: 100.9496819 | R44: 100.9496819 | S44: 100.9496819 | T44: 100.9496819 | U44: =IF(VLEESEENDEN!$H$15="ja",L44-((E44-G44*95%-I44)/E44*L44)*$R$6,L44-((E44-G44*80%-I44)/E44*L44)*$R$6) -> 100.9496819 | V44: 100.9496819 | W44: 100.9496819 | X44: 1
A45: 36 | B45: 2400 | E45: 5.97250116 | F45: 5.97250116 | G45: 0 | H45: 0 | I45: 0 | J45: 2.146721177 | K45: 1 | L45: 112.3145417 | M45: 112.3145417 | N45: 112.3145417 | O45: 112.3145417 | P45: 112.3145417 | Q45: 112.3145417 | R45: 112.3145417 | S45: 112.3145417 | T45: 112.3145417 | U45: =IF(VLEESEENDEN!$H$15="ja",L45-((E45-G45*95%-I45)/E45*L45)*$R$6,L45-((E45-G45*80%-I45)/E45*L45)*$R$6) -> 112.3145417 | V45: 112.3145417 | W45: 112.3145417 | X45: 1
A46: 37 | B46: 2471 | E46: 6.414718669 | F46: 6.414718669 | G46: 0 | H46: 0 | I46: 0 | J46: 2.177358388 | K46: 1 | L46: 122.3521596 | M46: 122.3521596 | N46: 122.3521596 | O46: 122.3521596 | P46: 122.3521596 | Q46: 122.3521596 | R46: 122.3521596 | S46: 122.3521596 | T46: 122.3521596 | U46: =IF(VLEESEENDEN!$H$15="ja",L46-((E46-G46*95%-I46)/E46*L46)*$R$6,L46-((E46-G46*80%-I46)/E46*L46)*$R$6) -> 122.3521596 | V46: 122.3521596 | W46: 122.3521596 | X46: 1
A47: 38 | B47: 2542 | E47: 6.882186829 | F47: 6.882186829 | G47: 0 | H47: 0 | I47: 0 | J47: 2.207598363 | K47: 1 | L47: 133.0915943 | M47: 133.0915943 | N47: 133.0915943 | O47: 133.0915943 | P47: 133.0915943 | Q47: 133.0915943 | R47: 133.0915943 | S47: 133.0915943 | T47: 133.0915943 | U47: =IF(VLEESEENDEN!$H$15="ja",L47-((E47-G47*95%-I47)/E47*L47)*$R$6,L47-((E47-G47*80%-I47)/E47*L47)*$R$6) -> 133.0915943 | V47: 133.0915943 | W47: 133.0915943 | X47: 1
A48: 39 | B48: 2613 | E48: 7.375730268 | F48: 7.375730268 | G48: 0 | H48: 0 | I48: 0 | J48: 2.237456506 | K48: 1 | L48: 144.5651909 | M48: 144.5651909 | N48: 144.5651909 | O48: 144.5651909 | P48: 144.5651909 | Q48: 144.5651909 | R48: 144.5651909 | S48: =IF(E48-G48-H48>=0,L48-((E48-G48-H48)/E48*L48)*$R$6,IF(G48>H48,L48-((E48-G48)/E48*L48)*$R$6,L48-((E48-H48)/E48*L48)*$R$6)) -> 144.5651909 | T48: 144.5651909 | U48: =IF(VLEESEENDEN!$H$15="ja",L48-((E48-G48*95%-I48)/E48*L48)*$R$6,L48-((E48-G48*80%-I48)/E48*L48)*$R$6) -> 144.5651909 | V48: 144.5651909 | W48: 144.5651909 | X48: 1
A49: 40 | B49: 2684 | E49: 7.896173611 | F49: 7.896173611 | G49: 0 | H49: 0 | I49: 0 | J49: 2.26694725 | K49: 1 | L49: 156.8058313 | M49: 156.8058313 | N49: 156.8058313 | O49: 156.8058313 | P49: 156.8058313 | Q49: 156.8058313 | R49: 156.8058313 | S49: 156.8058313 | T49: 156.8058313 | U49: =IF(VLEESEENDEN!$H$15="ja",L49-((E49-G49*95%-I49)/E49*L49)*$R$6,L49-((E49-G49*80%-I49)/E49*L49)*$R$6) -> 156.8058313 | V49: 156.8058313 | W49: 156.8058313 | X49: 1
A50: 41 | B50: 2755 | E50: 8.444341487 | F50: 8.444341487 | G50: 0 | H50: 0 | I50: 0 | J50: 2.296084135 | K50: 1 | L50: 169.8469262 | M50: 169.8469262 | N50: 169.8469262 | O50: 169.8469262 | P50: 169.8469262 | Q50: 169.8469262 | R50: 169.8469262 | S50: 169.8469262 | T50: 169.8469262 | U50: =IF(VLEESEENDEN!$H$15="ja",L50-((E50-G50*95%-I50)/E50*L50)*$R$6,L50-((E50-G50*80%-I50)/E50*L50)*$R$6) -> 169.8469262 | V50: 169.8469262 | W50: 169.8469262 | X50: 1
A51: 42 | B51: 2826 | E51: 9.021058522 | F51: 9.021058522 | G51: 0 | H51: 0 | I51: =MIN(R$5,E51-G51) -> 0 | J51: 2.324879886 | K51: 1 | L51: 183.722407 | M51: 183.722407 | N51: 183.722407 | O51: 183.722407 | P51: 183.722407 | Q51: 183.722407 | R51: =IF(E51-G51-H51>=0,L51-((E51-G51*80%-H51*95%)/E51*L51)*$R$6,IF(G51>H51,L51-((E51-G51)/E51*L51)*$R$6,L51-((E51-H51)/E51*L51)*$R$6)) -> 183.722407 | S51: 183.722407 | T51: 183.722407 | U51: =IF(VLEESEENDEN!$H$15="ja",L51-((E51-G51*95%-I51)/E51*L51)*$R$6,L51-((E51-G51*80%-I51)/E51*L51)*$R$6) -> 183.722407 | V51: 183.722407 | W51: 183.722407 | X51: 1
A52: 43 | B52: 2900 | E52: 9.653417969 | F52: =E52-G52 -> 9.653417969 | G52: =IF($R$4>0<E52,E52,IF($R$4>E52,E52,$R$4)) -> 0 | H52: =IF(E52<$R$5,E52-G52,$R$5) -> 0 | I52: =MIN(R$5,E52-G52) -> 0 | J52: 2.353346479 | K52: 1 | L52: 199.0082538 | M52: 199.0082538 | N52: =(((($J52*(1-$R$2))-$J$3)/1000*$F52*24*365*$K52)*(1-R$5))+(((($J52*(1-$R$2))-$J$3)/1000*$G52*24*365*$K52)*(1-R$3)) -> 199.0082538 | O52: =(((($J52)-$J$3)/1000*$F52*24*365*$K52))+(((($J52*(1-$R$2))-$J$3)/1000*$G52*24*365*$K52)*(1-R$3)) -> 199.0082538 | P52: 199.0082538 | Q52: 199.0082538 | R52: =IF(E52-G52-H52>=0,L52-((E52-G52*80%-H52*95%)/E52*L52)*$R$6,IF(G52>H52,L52-((E52-G52)/E52*L52)*$R$6,L52-((E52-H52)/E52*L52)*$R$6)) -> 199.0082538 | S52: =IF(E52-G52-H52>=0,L52-((E52-G52-H52)/E52*L52)*$R$6,IF(G52>H52,L52-((E52-G52)/E52*L52)*$R$6,L52-((E52-H52)/E52*L52)*$R$6)) -> 199.0082538 | T52: =L52-(E52-H52)/E52*L52*$R$6 -> 199.0082538 | U52: =IF(VLEESEENDEN!$H$15="ja",L52-((E52-G52*95%-I52)/E52*L52)*$R$6,L52-((E52-G52*80%-I52)/E52*L52)*$R$6) -> 199.0082538 | V52: =L52-((E52-G52-I52)/E52*L52)*$R$6 -> 199.0082538 | W52: =L52-(E52-H52)/E52*L52*$R$6 -> 199.0082538
A53: 44 | B53: 2950 | E53: 10.09922289 | F53: 10.09922289 | G53: 0 | H53: 0 | I53: 0 | J53: 2.381495205 | K53: 1 | L53: 210.6889578 | M53: 210.6889578 | N53: 210.6889578 | O53: 210.6889578 | P53: 210.6889578 | Q53: 210.6889578 | R53: 210.6889578 | S53: 210.6889578 | T53: 210.6889578 | U53: =IF(VLEESEENDEN!$H$15="ja",L53-((E53-G53*95%-I53)/E53*L53)*$R$6,L53-((E53-G53*80%-I53)/E53*L53)*$R$6) -> 210.6889578 | V53: 210.6889578 | W53: 210.6889578
A54: 45 | B54: 3000 | E54: 10.56030949 | F54: 10.56030949 | G54: 0 | H54: 0 | I54: 0 | J54: 2.409336718 | K54: 1 | L54: 222.8836707 | M54: 222.8836707 | N54: 222.8836707 | O54: 222.8836707 | P54: 222.8836707 | Q54: 222.8836707 | R54: 222.8836707 | S54: 222.8836707 | T54: 222.8836707 | U54: =IF(VLEESEENDEN!$H$15="ja",L54-((E54-G54*95%-I54)/E54*L54)*$R$6,L54-((E54-G54*80%-I54)/E54*L54)*$R$6) -> 222.8836707 | V54: 222.8836707 | W54: 222.8836707
A55: 46 | B55: 3050 | E55: 11.03696577 | F55: 11.03696577 | G55: 0 | H55: 0 | I55: 0 | J55: 2.436881089 | K55: 1 | L55: 235.606973 | M55: 235.606973 | N55: 235.606973 | O55: 235.606973 | P55: 235.606973 | Q55: 235.606973 | R55: 235.606973 | S55: 235.606973 | T55: 235.606973 | U55: =IF(VLEESEENDEN!$H$15="ja",L55-((E55-G55*95%-I55)/E55*L55)*$R$6,L55-((E55-G55*80%-I55)/E55*L55)*$R$6) -> 235.606973 | V55: 235.606973 | W55: 235.606973
A56: 47 | B56: 3100 | E56: 11.52947973 | F56: 11.52947973 | G56: 0 | H56: 0 | I56: 0 | J56: 2.464137848 | K56: 1 | L56: 248.8735918 | M56: 248.8735918 | N56: 248.8735918 | O56: 248.8735918 | P56: 248.8735918 | Q56: 248.8735918 | R56: 248.8735918 | S56: 248.8735918 | T56: 248.8735918 | U56: =IF(VLEESEENDEN!$H$15="ja",L56-((E56-G56*95%-I56)/E56*L56)*$R$6,L56-((E56-G56*80%-I56)/E56*L56)*$R$6) -> 248.8735918 | V56: 248.8735918 | W56: 248.8735918
A57: 48 | B57: 3150 | E57: 12.03813937 | F57: 12.03813937 | G57: 0 | H57: 0 | I57: 0 | J57: 2.491116023 | K57: 1 | L57: 262.6984005 | M57: 262.6984005 | N57: 262.6984005 | O57: 262.6984005 | P57: 262.6984005 | Q57: 262.6984005 | R57: 262.6984005 | S57: 262.6984005 | T57: 262.6984005 | U57: =IF(VLEESEENDEN!$H$15="ja",L57-((E57-G57*95%-I57)/E57*L57)*$R$6,L57-((E57-G57*80%-I57)/E57*L57)*$R$6) -> 262.6984005 | V57: 262.6984005 | W57: 262.6984005
A58: 49 | B58: 3200 | E58: 12.5632327 | F58: 12.5632327 | G58: 0 | H58: 0 | I58: 0 | J58: 2.517824178 | K58: 1 | L58: 277.0964167 | M58: 277.0964167 | N58: 277.0964167 | O58: 277.0964167 | P58: =IF(I58=0,L58,IF(I58>$R$5,L58-(R$5)/E58*L58*97%,L58-(I58)/E58*L58*97%)) -> 277.0964167 | Q58: 277.0964167 | R58: 277.0964167 | S58: 277.0964167 | T58: 277.0964167 | U58: =IF(VLEESEENDEN!$H$15="ja",L58-((E58-G58*95%-I58)/E58*L58)*$R$6,L58-((E58-G58*80%-I58)/E58*L58)*$R$6) -> 277.0964167 | V58: 277.0964167 | W58: 277.0964167
Q59: =I50/(E50-G50)*(L50-(L50-O50)/80%)*5% -> 0
B60: =AVERAGE(B9:B51) -> 1254.666667 | E60: =AVERAGE(E10:E51) -> 2.583613354 | P60: =IF(R$5<E5,R$5/E47*(L47-(L47-O47)/80%)*95%,E$5/E47*(L47-(L47-O47)/80%)*95%) -> 0 | Q60: =L51-I51/(E51)*(L51-(L51-O51)/80%)*95% -> 183.722407 | R60: =(L45-(L45-O45)/80%) -> 112.3145417 | S60: =5%*R60 -> 5.615727087
D61: totaal reductie debiet | F61: 0 | P61: =L51-R$5/E51*L51*95% -> 183.722407 | Q61: =E49/(E49-G49)*(L49-(L49-O49)/80%)*(1-95%) -> 7.840291567 | R61: =I51/(E51-G51) -> 0
E62: =SUM(E10:E51) -> 108.5117609 | F62: =SUM(F10:F51) -> 108.5117609 | G62: =SUM(G10:G51) -> 0 | K62: gem (- leeg) | L62: =AVERAGE(L10:L58) -> 73.00072371 | M62: =AVERAGE(M10:M58) -> 73.00072371 | N62: =AVERAGE(N10:N58) -> 73.00072371 | O62: =AVERAGE(O10:O59) -> 73.00072371 | P62: =AVERAGE(P10:P59) -> 73.00072371 | Q62: =AVERAGE(Q10:Q58) -> 73.00072371 | R62: 73.00072371 | S62: 73.00072371 | T62: 73.00072371 | U62: 73.00072371 | V62: 73.00072371 | W62: 73.00072371
F63: =F62/$E$62 -> 1 | G63: =G62/$E$62 -> 0 | K63: gem (+ leeg) | L63: =L62*0.81 -> 59.1305862 | M63: =M62*0.81 -> 59.1305862 | N63: 59.1305862 | O63: =O62*0.81 -> 59.1305862 | P63: 59.1305862 | Q63: 59.1305862 | R63: =R62*0.81 -> 59.1305862 | S63: 59.1305862 | T63: 59.1305862 | U63: 59.1305862 | V63: 59.1305862 | W63: 59.1305862
D64: TOTAAL DEBIET (hoofd en WW) | K64: reductie | L64: =1-(L63/$L$63) -> 0 | M64: 0 | N64: 0 | O64: =1-(O63/$L$63) -> 0 | P64: =1-(P63/($L$63)) -> 0 | Q64: 0 | R64: =1-(R63/$L$63) -> 0 | S64: =1-(S63/$L$63) -> 0 | T64: =1-(T63/$L$63) -> 0 | U64: 0 | V64: 0 | W64: =1-(W63/$L$63) -> 0
P65: =M64-P64 -> 0
O66: =O51+P51 -> 367.4448139 | P66: =(L51-I51/(E51-G51)*(L51-(L51-O51)/80%))*95% -> 174.5362866
P67: =(L51-I51/(E51-G51))*(1-95%) -> 9.186120348
P68: =(L51-I51/(E51-G51))*5% -> 9.186120348
P69: =(O51-(L51-O51)/80%) -> 183.722407
P70: =I51/(E51-G51) -> 0
N71: =20%*O71 -> 0 | O71: =L51-O51 -> 0
N72: =O51-N71 -> 183.722407 | O72: =O71/95% -> 0
N73: =95%*N72 -> 174.5362866 | O73: =L51-O72 -> 183.722407
N74: =L51-P51 -> 0 | O74: =5%*O73 -> 9.186120348
O75: =5.95/L51 -> 0.03238581564
N76: =95%*P51 -> 174.5362866

Sheet Max waarden (hidden)
A1: Overzicht maximale waarden rekenmodel reducties fijnstof
B3: waarden in m3/dier/uur
A5: Maximale ventilatie:
A6: Opfok leghennen | B6: 1.73
A7: Leghennen | B7: 8.01
A8: Opfok vleeskuikenouderdieren | B8: 4.86
A9: Vleeskuikenouderdieren | B9: 15
A10: Vleeskuikens | B10: 6.176199161
A11: Vleeskalkoenen hennen | B11: 12.35
A12: Vleeskalkoenen hanen | B12: 24.84
A13: Vleeseenden | B13: 12.56
A16: Debiet door droogtunnel | C16: rekenwaarde | D16: in overzicht
A17: Opfok leghennen | B17: bandendroger (30%) | C17: 0.807 | D17: 0.85 | E17: Deze waarden staan (nog) niet genoemd in de beschrijvingen.
B18: platendroger (55%) | C18: 0.838 | D18: 0.85
A19: Leghennen | B19: bandendroger (30%) | C19: 1.835 | D19: 2
B20: platendroger (55%) | C20: 1.899 | D20: 2
A23: Debiet door warmtewisselaar
A24: ZONDER FILTERS
A25: Reductiepercentage op stalniveau: | B25: 0.13 | D25: 0.31 | F25: 0.37 | H25: 0.5
B26: rekenwaarde | C26: in overzicht | D26: rekenwaarde | E26: in overzicht | F26: rekenwaarde | G26: in overzicht | H26: rekenwaarde | I26: in overzicht
A27: Opfok leghennen | B27: 0.175 | C27: 0.2 | D27: 0.434 | E27: 0.4 | F27: 0.527 | G27: 0.55 | H27: 0.745 | I27: 0.8
A28: Leghennen | B28: 0.439 | C28: 0.4 | D28: 1.048 | E28: 1 | F28: 1.252 | G28: 1.25 | H28: 1.708 | I28: 1.8
A29: Opfok vleeskuikenouderdieren | B29: 0.42 | C29: 0.4 | D29: 1.047 | E29: 1 | F29: 1.279 | G29: 1.3 | H29: 1.84 | I29: 1.9
A30: Vleeskuikenouderdieren | B30: 0.595 | C30: 0.6 | D30: 1.485 | E30: 1.5 | F30: 1.845 | G30: 1.85 | H30: 2.845 | I30: 2.9
A31: Vleeskuikens | B31: 0.357 | C31: 0.35 | D31: 1.001 | E31: 1 | F31: 1.27 | G31: 1.3 | H31: 1.975 | I31: 2
A32: Vleeskalkoenen hennen | B32: 1.245 | C32: 1.1 | D32: 3.17 | E32: 3 | F32: 3.86 | G32: 3.85 | H32: 5.5 | I32: 5.6
A33: Vleeskalkoenen hanen | B33: 2.695 | C33: 2.5 | D33: 6.75 | E33: 6.2 | F33: 8.175 | G33: 8.2 | H33: 11.5 | I33: 11.7
A34: Vleeseenden | B34: 0.88 | C34: 0.8 | D34: 2.485 | E34: 2.3 | F34: 3.12 | G34: 3.15 | H34: 4.73 | I34: 4.8
C35: =C32/B32 -> 0.8835341365 | E35: =E32/D32 -> 0.9463722397 | G35: =G32/F32 -> 0.9974093264 | I35: =I32/H32 -> 1.018181818
A36: MET FILTERS
A37: Reductiepercentage op stalniveau: | B37: 0.13 | D37: 0.31 | F37: 0.37 | H37: 0.5
B38: rekenwaarde | C38: in overzicht | D38: rekenwaarde | E38: in overzicht | F38: rekenwaarde | G38: in overzicht | H38: rekenwaarde | I38: in overzicht
A39: Opfok leghennen | B39: 0.141 | C39: 0.15 | D39: 0.346 | E39: 0.35 | F39: 0.418 | G39: 0.4 | H39: 0.581 | I39: 0.6
A40: Leghennen | B40: 0.355 | C40: 0.35 | D40: 0.847 | E40: 0.85 | F40: 1.012 | G40: 1 | H40: 1.369 | I40: 1.4
A41: Opfok vleeskuikenouderdieren | B41: 0.337 | C41: 0.35 | D41: 0.831 | E41: 0.85 | F41: 1.008 | G41: 1.1 | H41: 1.417 | I41: 1.45
A42: Vleeskuikenouderdieren | B42: 0.48 | C42: 0.5 | D42: 1.161 | E42: 1.2 | F42: 1.422 | G42: 1.5 | H42: 2.075 | I42: 2.1
A43: Vleeskuikens | B43: 0.285 | C43: 0.3 | D43: 0.765 | E43: 0.75 | F43: 0.958 | G43: 1 | H43: 1.435 | I43: 1.45
A44: Vleeskalkoenen hennen | B44: 0.999 | C44: 0.9 | D44: 2.51 | E44: 2.5 | F44: 3.045 | G44: 3 | H44: 4.27 | I44: 4.3
A45: Vleeskalkoenen hanen | B45: 2.165 | C45: 2.2 | D45: 5.358 | E45: 5.3 | F45: 6.475 | G45: 6.2 | H45: 9.01 | I45: 9
A46: Vleeseenden | B46: 0.692 | C46: 0.7 | D46: 1.91 | E46: 1.9 | F46: 2.375 | G46: 2.3 | H46: 3.51 | I46: 3.6

Sheet Reductietechnieken (hidden)
B1: serie alles voetnoot 2 | E1: A | F1: B | G1: C | H1: D | I1: E | J1: F | K1: G | L1: H | M1: I | N1: J | O1: K | P1: L | Q1: M | R1: N | S1: O | T1: P | U1: Q | V1: R | W1: S | X1: T | Y1: U | Z1: V | AA1: W | AB1: X | AC1: Y
E2: =+D3 -> 0.65 | F2: =+D4 -> 0.4 | G2: =+D5 -> 0.25 | H2: =+D6 -> 0.2 | I2: =+D8 -> 0.45 | J2: =+D9 -> 0.7 | K2: =+D10 -> 0.46 | L2: =+D11 -> 0.51 | M2: =+D12 -> 0.67 | N2: =+D13 -> 0.6 | O2: =+D14 -> 0.43 | P2: =+D15 -> 0.69 | Q2: =+D16 -> 0.69 | R2: =+D17 -> 0.87 | S2: =+D18 -> 0.87 | T2: =+D19 -> 0.85 | U2: =+D20 -> 0.7 | V2: =+D21 -> 0.8 | W2: =+D22 -> 0.63 | X2: =+D23 -> 0.63 | Y2: =+D24 -> 0.5 | Z2: =+D25 -> 0.5
A3: A | B3: chemische wasser | C3: 0.35 | D3: =+(1-C3) -> 0.65 | E3: =1-($D$3*E2) -> 0.5775 | F3: =1-($D$3*F2) -> 0.74 | G3: 0.8375 | H3: 0.87 | I3: 0.7075 | J3: 0.545 | K3: 0.701 | L3: 0.6685 | M3: 0.5645 | N3: 0.61 | O3: 0.7205 | P3: 0.5515 | Q3: 0.5515 | R3: 0.4345 | S3: 0.4345 | T3: 0.4475 | U3: 0.545 | V3: 0.48 | W3: 0.5905 | X3: 0.5905 | Y3: 0.675 | Z3: 0.675
A4: B | B4: bio wasser 60% | C4: 0.6 | D4: =+(1-C4) -> 0.4 | E4: =1-+$D$4*E2 -> 0.74 | F4: =1-+$D$4*F2 -> 0.84 | G4: 0.9 | H4: 0.92 | I4: 0.82 | J4: 0.72 | K4: 0.816 | L4: 0.796 | M4: 0.732 | N4: 0.76 | O4: 0.828 | P4: 0.724 | Q4: 0.724 | R4: 0.652 | S4: 0.652 | T4: 0.66 | U4: 0.72 | V4: 0.68 | W4: 0.748 | X4: 0.748 | Y4: 0.8 | Z4: 0.8
A5: C | B5: bio wasser 75% | C5: 0.75 | D5: 0.25 | E5: =1-+$D$5*E2 -> 0.8375 | F5: =1-+$D$5*F2 -> 0.9 | G5: 0.9375 | H5: 0.95 | I5: 0.8875 | J5: 0.825 | K5: 0.885 | L5: 0.8725 | M5: 0.8325 | N5: 0.85 | O5: 0.8925 | P5: 0.8275 | Q5: 0.8275 | R5: 0.7825 | S5: 0.7825 | T5: 0.7875 | U5: 0.825 | V5: 0.8 | W5: 0.8425 | X5: 0.8425 | Y5: 0.875 | Z5: 0.875
A6: D | B6: biofilter | C6: 0.8 | D6: 0.2 | E6: =1-+$D$6*E2 -> 0.87 | F6: =1-+$D$6*F2 -> 0.92 | G6: 0.95 | H6: 0.96 | I6: 0.91 | J6: 0.86 | K6: 0.908 | L6: 0.898 | M6: 0.866 | N6: 0.88 | O6: 0.914 | P6: 0.862 | Q6: 0.862 | R6: 0.826 | S6: 0.826 | T6: 0.83 | U6: 0.86 | V6: 0.84 | W6: 0.874 | X6: 0.874 | Y6: 0.9 | Z6: 0.9
B7: GEEN DROOGTUNNEL
A8: E | B8: DROOGTUNNEL (PLATEN) 55% | C8: 0.55 | D8: 0.45 | E8: =1-+$D$8*E2 -> 0.7075 | F8: =1-+$D$8*F2 -> 0.82 | G8: 0.8875 | H8: 0.91 | I8: 0.7975 | J8: 0.685 | K8: 0.793 | L8: 0.7705 | M8: 0.6985 | N8: 0.73 | O8: 0.8065 | P8: 0.6895 | Q8: 0.6895 | R8: 0.6085 | S8: 0.6085 | T8: 0.6175 | U8: 0.685 | V8: 0.64 | W8: 0.7165 | X8: 0.7165 | Y8: 0.775 | Z8: 0.775
A9: F | B9: DROOGTUNNEL (BANDEN) 30% | C9: 0.3 | D9: 0.7 | E9: =1-+$D$9*E2 -> 0.545 | F9: =1-+$D$9*F2 -> 0.72 | G9: 0.825 | H9: 0.86 | I9: 0.685 | J9: 0.51 | K9: 0.678 | L9: 0.643 | M9: 0.531 | N9: 0.58 | O9: 0.699 | P9: 0.517 | Q9: 0.517 | R9: 0.391 | S9: 0.391 | T9: 0.405 | U9: 0.51 | V9: 0.44 | W9: 0.559 | X9: 0.559 | Y9: 0.65 | Z9: 0.65
A10: G | B10: OLIEFILM | C10: 0.54 | D10: 0.46 | E10: =1-+$D$10*E2 -> 0.701 | F10: =1-+$D$10*F2 -> 0.816 | G10: 0.885 | H10: 0.908 | I10: 0.793 | J10: 0.678 | K10: 0.7884 | L10: 0.7654 | M10: 0.6918 | N10: 0.724 | O10: 0.8022 | P10: 0.6826 | Q10: 0.6826 | R10: 0.5998 | S10: 0.5998 | T10: 0.609 | U10: 0.678 | V10: 0.632 | W10: 0.7102 | X10: 0.7102 | Y10: 0.77 | Z10: 0.77
A11: H | B11: negatieve ionisatie | C11: 0.49 | D11: 0.51 | E11: =1-+$D$11*E2 -> 0.6685 | F11: =1-+$D$11*F2 -> 0.796 | G11: 0.8725 | H11: 0.898 | I11: 0.7705 | J11: 0.643 | K11: 0.7654 | L11: 0.7399 | M11: 0.6583 | N11: 0.694 | O11: 0.7807 | P11: 0.6481 | Q11: 0.6481 | R11: 0.5563 | S11: 0.5563 | T11: 0.5665 | U11: 0.643 | V11: 0.592 | W11: 0.6787 | X11: 0.6787 | Y11: 0.745 | Z11: 0.745
A12: I | B12: water wasser | C12: 0.33 | D12: 0.67 | E12: =1-+$D$12*E2 -> 0.5645 | F12: =1-+$D$12*F2 -> 0.732 | G12: 0.8325 | H12: 0.866 | I12: 0.6985 | J12: 0.531 | K12: 0.6918 | L12: 0.6583 | M12: 0.5511 | N12: 0.598 | O12: 0.7119 | P12: 0.5377 | Q12: 0.5377 | R12: 0.4171 | S12: 0.4171 | T12: 0.4305 | U12: 0.531 | V12: 0.464 | W12: 0.5779 | X12: 0.5779 | Y12: 0.665 | Z12: 0.665
A13: J | B13: droogfilter | C13: 0.4 | D13: 0.6 | E13: =1-+$D$13*E2 -> 0.61 | F13: =1-+$D$13*F2 -> 0.76 | G13: 0.85 | H13: 0.88 | I13: 0.73 | J13: 0.58 | K13: 0.724 | L13: 0.694 | M13: 0.598 | N13: 0.64 | O13: 0.742 | P13: 0.586 | Q13: 0.586 | R13: 0.478 | S13: 0.478 | T13: 0.49 | U13: 0.58 | V13: 0.52 | W13: 0.622 | X13: 0.622 | Y13: 0.7 | Z13: 0.7
A14: K | B14: ionisatiefilter | C14: 0.57 | D14: 0.43 | E14: =1-+$D$14*E2 -> 0.7205 | F14: =1-+$D$14*F2 -> 0.828 | G14: 0.8925 | H14: 0.914 | I14: 0.8065 | J14: 0.699 | K14: 0.8022 | L14: 0.7807 | M14: 0.7119 | N14: 0.742 | O14: 0.8151 | P14: 0.7033 | Q14: 0.7033 | R14: 0.6259 | S14: 0.6259 | T14: 0.6345 | U14: 0.699 | V14: 0.656 | W14: 0.7291 | X14: 0.7291 | Y14: 0.785 | Z14: 0.785
A15: L | B15: warmtewisselaar zonder stof 31% | C15: 0.31 | D15: 0.69 | E15: =1-+$D$15*E2 -> 0.5515 | F15: =1-+$D$15*F2 -> 0.724 | G15: 0.8275 | H15: 0.862 | I15: 0.6895 | J15: 0.517 | K15: 0.6826 | L15: 0.6481 | M15: 0.5377 | N15: 0.586 | O15: 0.7033 | P15: 0.5239 | Q15: 0.5239 | R15: 0.3997 | S15: 0.3997 | T15: 0.4135 | U15: 0.517 | V15: 0.448 | W15: 0.5653 | X15: 0.5653 | Y15: 0.655 | Z15: 0.655
A16: M | B16: warmtewisselaar met stof 31% | C16: 0.31 | D16: 0.69 | E16: =1-+$D$16*E2 -> 0.5515 | F16: =1-+$D$16*F2 -> 0.724 | G16: 0.8275 | H16: 0.862 | I16: 0.6895 | J16: 0.517 | K16: 0.6826 | L16: 0.6481 | M16: 0.5377 | N16: 0.586 | O16: 0.7033 | P16: 0.5239 | Q16: 0.5239 | R16: 0.3997 | S16: 0.3997 | T16: 0.4135 | U16: 0.517 | V16: 0.448 | W16: 0.5653 | X16: 0.5653 | Y16: 0.655 | Z16: 0.655
A17: N | B17: warmtewisselaar zonder stof 13% | C17: 0.13 | D17: 0.87 | E17: =1-+$D$17*E2 -> 0.4345 | F17: =1-+$D$17*F2 -> 0.652 | G17: 0.7825 | H17: 0.826 | I17: 0.6085 | J17: 0.391 | K17: 0.5998 | L17: 0.5563 | M17: 0.4171 | N17: 0.478 | O17: 0.6259 | P17: 0.3997 | Q17: 0.3997 | R17: 0.2431 | S17: 0.2431 | T17: 0.2605 | U17: 0.391 | V17: 0.304 | W17: 0.4519 | X17: 0.4519 | Y17: 0.565 | Z17: 0.565
A18: O | B18: warmtewisselaar met stof 13% | C18: 0.13 | D18: 0.87 | E18: =1-+$D$18*E2 -> 0.4345 | F18: =1-+$D$18*F2 -> 0.652 | G18: 0.7825 | H18: 0.826 | I18: 0.6085 | J18: 0.391 | K18: 0.5998 | L18: 0.5563 | M18: 0.4171 | N18: 0.478 | O18: 0.6259 | P18: 0.3997 | Q18: 0.3997 | R18: 0.2431 | S18: 0.2431 | T18: 0.2605 | U18: 0.391 | V18: 0.304 | W18: 0.4519 | X18: 0.4519 | Y18: 0.565 | Z18: 0.565
A19: P | B19: oliefim | C19: 0.15 | D19: 0.85 | E19: =1-+$D$19*E2 -> 0.4475 | F19: =1-+$D$19*F2 -> 0.66 | G19: 0.7875 | H19: 0.83 | I19: 0.6175 | J19: 0.405 | K19: 0.609 | L19: 0.5665 | M19: 0.4305 | N19: 0.49 | O19: 0.6345 | P19: 0.4135 | Q19: 0.4135 | R19: 0.2605 | S19: 0.2605 | T19: 0.2775 | U19: 0.405 | V19: 0.32 | W19: 0.4645 | X19: 0.4645 | Y19: 0.575 | Z19: 0.575
A20: Q | B20: oliefilm | C20: 0.3 | D20: 0.7 | E20: =1-+$D$20*E2 -> 0.545 | F20: =1-+$D$20*F2 -> 0.72 | G20: 0.825 | H20: 0.86 | I20: 0.685 | J20: 0.51 | K20: 0.678 | L20: 0.643 | M20: 0.531 | N20: 0.58 | O20: 0.699 | P20: 0.517 | Q20: 0.517 | R20: 0.391 | S20: 0.391 | T20: 0.405 | U20: 0.51 | V20: 0.44 | W20: 0.559 | X20: 0.559 | Y20: 0.65 | Z20: 0.65
A21: R | B21: strooiselschuif | C21: 0.2 | D21: 0.8 | E21: =1-+$D$21*E2 -> 0.48 | F21: =1-+$D$21*F2 -> 0.68 | G21: 0.8 | H21: 0.84 | I21: 0.64 | J21: 0.44 | K21: 0.632 | L21: 0.592 | M21: 0.464 | N21: 0.52 | O21: 0.656 | P21: 0.448 | Q21: 0.448 | R21: 0.304 | S21: 0.304 | T21: 0.32 | U21: 0.44 | V21: 0.36 | W21: 0.496 | X21: 0.496 | Y21: 0.6 | Z21: 0.6
A22: S | B22: warmtewisselaar zonder stof 37% | C22: 0.37 | D22: 0.63 | E22: =1-+$D$22*E2 -> 0.5905 | F22: =1-+$D$22*F2 -> 0.748 | G22: 0.8425 | H22: 0.874 | I22: 0.7165 | J22: 0.559 | K22: 0.7102 | L22: 0.6787 | M22: 0.5779 | N22: 0.622 | O22: 0.7291 | P22: 0.5653 | Q22: 0.5653 | R22: 0.4519 | S22: 0.4519 | T22: 0.4645 | U22: 0.559 | V22: 0.496 | W22: 0.6031 | X22: 0.6031 | Y22: 0.685 | Z22: 0.685
A23: T | B23: warmtewisselaar met stof 37% | C23: 0.37 | D23: 0.63 | E23: =1-+$D$23*E2 -> 0.5905 | F23: =1-+$D$23*F2 -> 0.748 | G23: 0.8425 | H23: 0.874 | I23: 0.7165 | J23: 0.559 | K23: 0.7102 | L23: 0.6787 | M23: 0.5779 | N23: 0.622 | O23: 0.7291 | P23: 0.5653 | Q23: 0.5653 | R23: 0.4519 | S23: 0.4519 | T23: 0.4645 | U23: 0.559 | V23: 0.496 | W23: 0.6031 | X23: 0.6031 | Y23: 0.685 | Z23: 0.685
A24: U | B24: warmtewisselaar zonder stof 50% | C24: 0.5 | D24: 0.5 | E24: =1-+$D$24*E2 -> 0.675 | F24: =1-+$D$24*F2 -> 0.8 | G24: 0.875 | H24: 0.9 | I24: 0.775 | J24: 0.65 | K24: 0.77 | L24: 0.745 | M24: 0.665 | N24: 0.7 | O24: 0.785 | P24: 0.655 | Q24: 0.655 | R24: 0.565 | S24: 0.565 | T24: 0.575 | U24: 0.65 | V24: 0.6 | W24: 0.685 | X24: 0.685 | Y24: 0.75 | Z24: 0.75
A25: V | B25: warmtewisselaar met stof 50% | C25: 0.5 | D25: 0.5 | E25: =1-+$D$25*E2 -> 0.675 | F25: =1-+$D$25*F2 -> 0.8 | G25: 0.875 | H25: 0.9 | I25: 0.775 | J25: 0.65 | K25: 0.77 | L25: 0.745 | M25: 0.665 | N25: 0.7 | O25: 0.785 | P25: 0.655 | Q25: 0.655 | R25: 0.565 | S25: 0.565 | T25: 0.575 | U25: 0.65 | V25: 0.6 | W25: 0.685 | X25: 0.685 | Y25: 0.75 | Z25: 0.75
B28: percentages berekend door 1 x (1-%)x(1-%)
B29: rood | C29: afwijkend
B30: paars | C30: 1% afwijkend
B31: blauw | C31: kan niet gecombineerd
B32: GEEN TECHNIEK
B33: CHEMISCHE WASSER 35% | C33: ALLE VENTILATIELUCHT
B34: CHEMISCHE WASSER 70%
B35: BIO WASSER 60% | C35: DEEL VENTILATIELUCHT
B36: BIO WASSER 75%
B37: BIOFILTER | C37: GEEN TECHNIEK
B38: WATERLUCHTWASSYSTEEM | C38: WATERLUCHTWASSYSTEEM
B39: DROOGFILTERWAND | C39: DROOGFILTERWAND
B40: IONISATIEFILTER | C40: IONISATIEFILTER
B41: LUCHTCONDITIONERINGSUNIT
B42: WARMTEWISSELAAR 13% | C42: ALLE VENTILATIELUCHT
B43: WARMTEWISSELAAR 31% | C43: 75% VENTILATIE
B44: WARMTEWISSELAAR 37% | C44: 50% VENTILATIE
B45: WARMTEWISSELAAR 50% | C45: 25% VENTILATIE
B46: ZONDER STOFFILTER
B47: MET STOFFILTER
B49: PARALLEL GESCHAKELD MET WARMTEWISSELAAR
B50: SERIE GESCHAKELD MET WARMTEWISSELAAR
B52: JA | C52: JA
B53: NEE | C53: NEE
C54: =IF(VLEESEENDEN!$L$20="geen techniek","GEEN TECHNIEK","JA") -> GEEN TECHNIEK
C55: NEE

Sheet eenden (hidden)
A1: Wk | B1: Lft | C1: Debiet | D1: WW | E1: WW | F1: Hoofd debiet WW 0,35 | G1: Hoofd debiet WW | H1: PM10 | I1: PM10 em. norm | J1: PM10 em. +WW +50% | K1: PM10 em. +WW +60% | L1: PM10 em. +WW +70% | M1: PM10 em. +WW +70% | N1: PM10 em. +WW +77% | O1: PM10 em. +WW +80% | P1: PM10 em. +WW +99% | R1: Wk | S1: Lft | T1: gew | AM1: Wk | AN1: Lft | AO1: gew hen | AP1: gew haan
D2: 0.35 | E2: 4.8 | G2: =+E2 -> 4.8 | M2: =+E2 -> 4.8 | N2: =+M2 -> 4.8 | O2: =+N2 -> 4.8 | P2: =+E2 -> 4.8
A3: 1 | B3: 1 | C3: =0.000000000384*T3^3-0.000000342064*T3^2+0.001060852819*T3+0.088327034395 -> 0.1661288858 | D3: =C3 -> 0.1661288858 | E3: =IF(C3<$E$2,C3,$E$2) -> 0.1661288858 | F3: =C3-D3 -> 0 | G3: =C3-E3 -> 0 | H3: 0.3364 | I3: =(H3/1000)*C3*24*365 -> 0.489559233 | J3: =$H3/1000*$F3*24*365+($H3/1000*$D3*24*365)*0.5 -> 0.2447796165 | K3: =$H3/1000*$F3*24*365+($H3/1000*$D3*24*365)*0.4 -> 0.1958236932 | L3: =$H3/1000*$F3*24*365+($H3/1000*$D3*24*365)*0.3 -> 0.1468677699 | M3: =$H3/1000*$G3*24*365+($H3/1000*$E3*24*365)*0.3 -> 0.1468677699 | N3: =$H3/1000*$G3*24*365+($H3/1000*$E3*24*365)*0.23 -> 0.1125986236 | O3: =$H3/1000*$G3*24*365+($H3/1000*$E3*24*365)*0.2 -> 0.0979118466 | P3: =$H3/1000*$G3*24*365+($H3/1000*$E3*24*365)*0.01 -> 0.00489559233 | R3: 1 | S3: 1 | T3: 75 | AM3: 1 | AN3: 1 | AO3: 0.06 | AP3: 0.06
A4: 1 | B4: 2 | C4: =0.000000000384*T4^3-0.000000342064*T4^2+0.001060852819*T4+0.088327034395 -> 0.1913756763 | D4: 0.1913756763 | E4: =IF(C4<$E$2,C4,$E$2) -> 0.1913756763 | F4: 0 | G4: =C4-E4 -> 0 | H4: 0.4814472395 | I4: 0.8071226696 | J4: =$H4/1000*$F4*24*365+($H4/1000*$D4*24*365)*0.5 -> 0.4035613348 | K4: =$H4/1000*$F4*24*365+($H4/1000*$D4*24*365)*0.4 -> 0.3228490679 | L4: =$H4/1000*$F4*24*365+($H4/1000*$D4*24*365)*0.3 -> 0.2421368009 | M4: =$H4/1000*$G4*24*365+($H4/1000*$E4*24*365)*0.3 -> 0.2421368009 | N4: =$H4/1000*$G4*24*365+($H4/1000*$E4*24*365)*0.23 -> 0.185638214 | O4: =$H4/1000*$G4*24*365+($H4/1000*$E4*24*365)*0.2 -> 0.1614245339 | P4: =$H4/1000*$G4*24*365+($H4/1000*$E4*24*365)*0.01 -> 0.008071226696 | R4: 1 | S4: 2 | T4: 100 | AM4: 1 | AN4: 2 | AO4: 0.07 | AP4: 0.07
A5: 1 | B5: 3 | C5: =0.000000000384*T5^3-0.000000342064*T5^2+0.001060852819*T5+0.088327034395 -> 0.2163388868 | D5: 0.2163388868 | E5: 0.2163388868 | F5: 0 | G5: 0 | H5: 0.5937766294 | I5: 1.125283101 | J5: 0.5626415504 | K5: 0.4501132404 | L5: 0.3375849303 | M5: 0.3375849303 | N5: 0.2588151132 | O5: 0.2250566202 | P5: 0.01125283101 | R5: 1 | S5: 3 | T5: 125 | AM5: 1 | AN5: 3 | AO5: 0.09 | AP5: 0.09
A6: 1 | B6: 4 | C6: =0.000000000384*T6^3-0.000000342064*T6^2+0.001060852819*T6+0.088327034395 -> 0.2410545172 | D6: 0.2410545172 | E6: 0.2410545172 | F6: 0 | G6: 0 | H6: 0.6890352093 | I6: 1.454992636 | J6: 0.7274963178 | K6: 0.5819970543 | L6: 0.4364977907 | M6: 0.4364977907 | N6: 0.3346483062 | O6: 0.2909985271 | P6: 0.01454992636 | R6: 1 | S6: 4 | T6: 150 | AM6: 1 | AN6: 4 | AO6: 0.1 | AP6: 0.1
A7: 1 | B7: 5 | C7: 0.2655585677 | D7: 0.2655585677 | E7: 0.2655585677 | F7: 0 | G7: 0 | H7: 0.7733271779 | I7: 1.798985642 | J7: 0.899492821 | K7: 0.7195942568 | L7: 0.5396956926 | M7: 0.5396956926 | N7: 0.4137666976 | O7: 0.3597971284 | P7: 0.01798985642 | R7: 1 | S7: 5 | T7: 175 | AM7: 1 | AN7: 5 | AO7: 0.12 | AP7: 0.12
A8: 1 | B8: 6 | C8: 0.2898870382 | D8: 0.2898870382 | E8: 0.2898870382 | F8: 0 | G8: 0 | H8: 0.8497982136 | I8: 2.157986468 | J8: 1.078993234 | K8: 0.8631945872 | L8: 0.6473959404 | M8: 0.6473959404 | N8: 0.4963368876 | O8: 0.4315972936 | P8: 0.02157986468 | R8: 1 | S8: 6 | T8: 200 | AM8: 1 | AN8: 6 | AO8: 0.14 | AP8: 0.14
A9: 1 | B9: 7 | C9: 0.3140759287 | D9: 0.3140759287 | E9: 0.3140759287 | F9: 0 | G9: 0 | H9: 0.9203238852 | I9: 2.532091831 | J9: 1.266045916 | K9: 1.012836733 | L9: 0.7596275494 | M9: 0.7596275494 | N9: 0.5823811212 | O9: 0.5064183663 | P9: 0.02532091831 | R9: 1 | S9: 7 | T9: 225 | AM9: 1 | AN9: 7 | AO9: 0.16 | AP9: 0.16
A10: 2 | B10: 8 | C10: 0.3381612391 | D10: 0.3381612391 | E10: 0.3381612391 | F10: 0 | G10: 0 | H10: 0.9861299031 | I10: 2.921205171 | J10: 1.460602586 | K10: 1.168482069 | L10: 0.8763615514 | M10: 0.8763615514 | N10: 0.6718771894 | O10: 0.5842410343 | P10: 0.02921205171 | R10: 2 | S10: 8 | T10: 250 | AM10: 2 | AN10: 8 | AO10: 0.18 | AP10: 0.18
A11: 2 | B11: 9 | C11: 0.3861651201 | D11: 0.3861651201 | E11: 0.3861651201 | F11: 0 | G11: 0 | H11: 1.048069814 | I11: 3.54541733 | J11: 1.772708665 | K11: 1.418166932 | L11: 1.063625199 | M11: 1.063625199 | N11: 0.815445986 | O11: 0.7090834661 | P11: 0.0354541733 | R11: 2 | S11: 9 | T11: 300 | AM11: 2 | AN11: 9 | AO11: 0.2 | AP11: 0.21
A12: 2 | B12: 10 | C12: 0.434186681 | D12: 0.35 | E12: 0.434186681 | F12: 0.08418668104 | G12: 0 | H12: 1.106766454 | I12: 4.209558898 | J12: 2.512885925 | K12: 2.17355133 | L12: 1.834216735 | M12: 1.262867669 | N12: 0.9681985466 | O12: 0.8419117797 | P12: 0.04209558898 | R12: 2 | S12: 10 | T12: 350 | AM12: 2 | AN12: 10 | AO12: 0.22 | AP12: 0.24
A13: 2 | B13: 11 | C13: 0.482513922 | D13: 0.35 | E13: 0.482513922 | F13: 0.132513922 | G13: 0 | H13: 1.162690928 | I13: 4.914487544 | J13: 3.132082351 | K13: 2.775601312 | L13: 2.419120274 | M13: 1.474346263 | N13: 1.130332135 | O13: 0.9828975087 | P13: 0.04914487544 | R13: 2 | S13: 11 | T13: 400 | AM13: 2 | AN13: 11 | AO13: 0.25 | AP13: 0.27
A14: 2 | B14: 12 | C14: 0.5314348429 | D14: 0.35 | E14: 0.5314348429 | F14: 0.1814348429 | G14: 0 | H14: 1.216209881 | I14: 5.661906051 | J14: 3.797456303 | K14: 3.424566354 | L14: 3.051676404 | M14: 1.698571815 | N14: 1.302238392 | O14: 1.13238121 | P14: 0.05661906051 | R14: 2 | S14: 12 | T14: 450 | AM14: 2 | AN14: 12 | AO14: 0.28 | AP14: 0.31
A15: 2 | B15: 13 | C15: 0.5812374439 | D15: 0.35 | E15: 0.5812374439 | F15: 0.2312374439 | G15: 0 | H15: 1.267615348 | I15: 6.454241022 | J15: 4.510986693 | K15: 4.122335828 | L15: 3.733684962 | M15: 1.936272307 | N15: 1.484475435 | O15: 1.290848204 | P15: 0.06454241022 | R15: 2 | S15: 13 | T15: 500 | AM15: 2 | AN15: 13 | AO15: 0.31 | AP15: 0.35
A16: 2 | B16: 14 | C16: 0.6322097248 | D16: 0.35 | E16: 0.6322097248 | F16: 0.2822097248 | G16: 0 | H16: 1.317144453 | I16: 7.294553021 | J16: 5.275370575 | K16: 4.871534086 | L16: 4.467697597 | M16: 2.188365906 | N16: 1.677747195 | O16: 1.458910604 | P16: 0.07294553021 | R16: 2 | S16: 14 | T16: 550 | AM16: 2 | AN16: 14 | AO16: 0.34 | AP16: 0.39
A17: 3 | B17: 15 | C17: 0.6846396858 | D17: 0.35 | E17: 0.6846396858 | F17: 0.3346396858 | G17: 0 | H17: 1.364992881 | I17: 8.186467882 | J17: 6.093933796 | K17: 5.675426979 | L17: 5.256920161 | M17: 2.455940365 | N17: 1.882887613 | O17: 1.637293576 | P17: 0.08186467882 | R17: 3 | S17: 15 | T17: 600 | AM17: 3 | AN17: 15 | AO17: 0.38 | AP17: 0.43
A18: 3 | B18: 16 | C18: 0.777931179 | D18: 0.35 | E18: 0.777931179 | F18: 0.427931179 | G18: 0 | H18: 1.411324375 | I18: 9.617719935 | J18: 7.454159669 | K18: 7.021447616 | L18: 6.588735563 | M18: 2.885315981 | N18: 2.212075585 | O18: 1.923543987 | P18: 0.09617719935 | R18: 3 | S18: 16 | T18: 685 | AM18: 3 | AN18: 16 | AO18: 0.41 | AP18: 0.48
A19: 3 | B19: 17 | C19: 0.8776826314 | D19: 0.35 | E19: 0.8776826314 | F19: 0.5276826314 | G19: 0 | H19: 1.4562776 | I19: 11.19659011 | J19: 8.964116548 | K19: 8.517621836 | L19: 8.071127124 | M19: 3.358977032 | N19: 2.575215725 | O19: 2.239318022 | P19: 0.1119659011 | R19: 3 | S19: 17 | T19: 770 | AM19: 3 | AN19: 17 | AO19: 0.45 | AP19: 0.52
A20: 3 | B20: 18 | C20: 0.985308987 | D20: 0.35 | E20: 0.985308987 | F20: 0.635308987 | G20: 0 | H20: 1.499971222 | I20: 12.94671169 | J20: 10.64725581 | K20: 10.18736464 | L20: 9.727473458 | M20: 3.884013508 | N20: 2.97774369 | O20: 2.589342339 | P20: 0.1294671169 | R20: 3 | S20: 18 | T20: 855 | AM20: 3 | AN20: 18 | AO20: 0.5 | AP20: 0.58
A21: 3 | B21: 19 | C21: 1.10222519 | D21: 0.35 | E21: 1.10222519 | F21: 0.7522251899 | G21: 0 | H21: 1.542507732 | I21: 14.89367208 | J21: 12.52900773 | K21: 12.05607486 | L21: 11.58314199 | M21: 4.468101625 | N21: 3.42554458 | O21: 2.978734417 | P21: 0.1489367208 | R21: 3 | S21: 19 | T21: 940 | AM21: 3 | AN21: 19 | AO21: 0.54 | AP21: 0.63
A22: 3 | B22: 20 | C22: 1.229846184 | D22: 0.35 | E22: 1.229846184 | F22: 0.8798461839 | G22: 0 | H22: 1.583976379 | I22: 17.06489439 | J22: 14.6366586 | K22: 14.15101144 | L22: 13.66536429 | M22: 5.119468318 | N22: 3.92492571 | O22: 3.412978878 | P22: 0.1706489439 | R22: 3 | S22: 20 | T22: 1025 | AM22: 3 | AN22: 20 | AO22: 0.59 | AP22: 0.69
A23: 3 | B23: 21 | C23: 1.369586913 | D23: 0.35 | E23: 1.369586913 | F23: 1.019586913 | G23: 0 | H23: 1.624455453 | I23: 19.48953646 | J23: 16.99924625 | K23: 16.50118821 | L23: 16.00313017 | M23: 5.846860939 | N23: 4.482593387 | O23: 3.897907293 | P23: 0.1948953646 | R23: 3 | S23: 21 | T23: 1110 | AM23: 3 | AN23: 21 | AO23: 0.64 | AP23: 0.75
A24: 4 | B24: 22 | C24: 1.532330257 | D24: 0.35 | E24: 1.532330257 | F24: 1.182330257 | G24: 0 | H24: 1.664014083 | I24: 22.33641557 | J24: 19.78548198 | K24: 19.27529526 | L24: 18.76510854 | M24: 6.70092467 | N24: 5.13737558 | O24: 4.467283113 | P24: 0.2233641557 | R24: 4 | S24: 22 | T24: 1200 | AM24: 4 | AN24: 22 | AO24: 0.69 | AP24: 0.82
A25: 4 | B25: 23 | C25: 1.701478742 | D25: 0.35 | E25: 1.701478742 | F25: 1.351478742 | G25: 0 | H25: 1.702713675 | I25: 25.37886863 | J25: 22.76860856 | K25: 22.24655655 | L25: 21.72450454 | M25: 7.613660588 | N25: 5.837139784 | O25: 5.075773726 | P25: 0.2537886863 | R25: 4 | S25: 23 | T25: 1285 | AM25: 4 | AN25: 23 | AO25: 0.74 | AP25: 0.89
A26: 4 | B26: 24 | C26: 1.887075027 | D26: 0.35 | E26: 1.887075027 | F26: 1.537075027 | G26: 0 | H26: 1.740609066 | I26: 28.77362073 | J26: 26.10526703 | K26: 25.57159629 | L26: 25.03792555 | M26: 8.632086219 | N26: 6.617932768 | O26: 5.754724146 | P26: 0.2877362073 | R26: 4 | S26: 24 | T26: 1370 | AM26: 4 | AN26: 24 | AO26: 0.8 | AP26: 0.96
A27: 4 | B27: 25 | C27: 2.090534054 | D27: 0.35 | E27: 2.090534054 | F27: 1.740534054 | G27: 0 | H27: 1.777749477 | I27: 32.5560654 | J27: 29.83077546 | K27: 29.28571747 | L27: 28.74065948 | M27: 9.766819621 | N27: 7.487895043 | O27: 6.511213081 | P27: 0.325560654 | R27: 4 | S27: 25 | T27: 1455 | AM27: 4 | AN27: 25 | AO27: 0.86 | AP27: 1.03
A28: 4 | B28: 26 | C28: 2.313270769 | D28: 0.35 | E28: 2.313270769 | F28: 1.963270769 | G28: 0 | H28: 1.814179281 | I28: 36.76298601 | J28: 33.98184917 | K28: 33.4256218 | L28: 32.86939444 | M28: 11.0288958 | N28: 8.455486782 | O28: 7.352597202 | P28: 0.3676298601 | R28: 4 | S28: 26 | T28: 1540 | AM28: 4 | AN28: 26 | AO28: 0.92 | AP28: 1.11
A29: 4 | B29: 27 | C29: 2.556700115 | D29: 0.35 | E29: 2.556700115 | F29: 2.206700115 | G29: 0 | H29: 1.84993865 | I29: 41.43250802 | J29: 38.59655207 | K29: 38.02936088 | L29: 37.46216969 | M29: 12.42975241 | N29: 9.529476846 | O29: 8.286501605 | P29: 0.4143250802 | R29: 4 | S29: 27 | T29: 1625 | AM29: 4 | AN29: 27 | AO29: 0.99 | AP29: 1.19
A30: 4 | B30: 28 | C30: 2.822237036 | D30: 0.35 | E30: 2.822237036 | F30: 2.472237036 | G30: 0 | H30: 1.885064093 | I30: 46.60405584 | J30: 43.71425259 | K30: 43.13629194 | L30: 42.55833128 | M30: 13.98121675 | N30: 10.71893284 | O30: 9.320811168 | P30: 0.4660405584 | R30: 4 | S30: 28 | T30: 1710 | AM30: 4 | AN30: 28 | AO30: 1.05 | AP30: 1.27
A31: 5 | B31: 29 | C31: 3.129062749 | D31: 0.35 | E31: 3.129062749 | F31: 2.779062749 | G31: 0 | H31: 1.919588907 | I31: 52.61706389 | J31: 49.6743341 | K31: 49.08578814 | L31: 48.49724218 | M31: 15.78511917 | N31: 12.10192469 | O31: 10.52341278 | P31: 0.5261706389 | R31: 5 | S31: 29 | T31: 1800 | AM31: 5 | AN31: 29 | AO31: 1.12 | AP31: 1.36
A32: 5 | B32: 30 | C32: 3.444570626 | D32: 0.35 | E32: 3.444570626 | F32: 3.094570626 | G32: 0 | H32: 1.953543562 | I32: 58.94708044 | J32: 55.95229815 | K32: 55.3533417 | L32: 54.75438524 | M32: 17.68412413 | N32: 13.5578285 | O32: 11.78941609 | P32: 0.5894708044 | R32: 5 | S32: 30 | T32: 1885 | AM32: 5 | AN32: 30 | AO32: 1.19 | AP32: 1.45
A33: 5 | B33: 31 | C33: 3.786514142 | D33: 0.35 | E33: 3.786514142 | F33: 3.436514142 | G33: 0 | H33: 1.986956024 | I33: 65.90706085 | J33: 62.86105727 | K33: 62.25185655 | L33: 61.64265583 | M33: 19.77211826 | N33: 15.158624 | O33: 13.18141217 | P33: 0.6590706085 | R33: 5 | S33: 31 | T33: 1970 | AM33: 5 | AN33: 31 | AO33: 1.27 | AP33: 1.54
A34: 5 | B34: 32 | C34: 4.156308242 | D34: 0.35 | E34: 4.156308242 | F34: 3.806308242 | G34: 0 | H34: 2.019852034 | I34: 73.54131825 | J34: 70.44488509 | K34: 69.82559845 | L34: 69.20631182 | M34: 22.06239548 | N34: 16.9145032 | O34: 14.70826365 | P34: 0.7354131825 | R34: 5 | S34: 32 | T34: 2055 | AM34: 5 | AN34: 32 | AO34: 1.34 | AP34: 1.64
A35: 5 | B35: 33 | C35: 4.555367869 | D35: 0.35 | E35: 4.555367869 | F35: =C35-D35 -> 4.205367869 | G35: 0 | H35: 2.052255352 | I35: =(H35/1000)*C35*24*365 -> 81.89529604 | J35: 78.74918859 | K35: 78.1199671 | L35: 77.49074561 | M35: 24.56858881 | N35: 18.83591809 | O35: 16.37905921 | P35: 0.8189529604 | R35: 5 | S35: 33 | T35: 2140 | AM35: 5 | AN35: 33 | AO35: 1.42 | AP35: 1.74
A36: 5 | B36: 34 | C36: 4.985107967 | D36: 0.35 | E36: 4.8 | F36: 4.635107967 | G36: 0.1851079667 | H36: 2.084187961 | I36: 91.01554161 | J36: 87.82048147 | K36: 87.18146944 | L36: 86.54245741 | M36: 29.67038683 | N36: 23.53587135 | O36: 20.90679329 | P36: 4.255965564 | R36: 5 | S36: 34 | T36: 2225 | AM36: 5 | AN36: 34 | AO36: 1.5 | AP36: 1.84
A37: 5 | B37: 35 | C37: 5.44694348 | D37: 0.35 | E37: 4.8 | F37: 5.09694348 | G37: 0.6469434799 | H37: 2.115670252 | I37: 100.9496819 | J37: 97.70635938 | K37: 97.05769488 | L37: 96.40903038 | M37: 38.67788993 | N37: 32.45071074 | O37: 29.78191966 | P37: 12.87957613 | R37: 5 | S37: 35 | T37: 2310 | AM37: 5 | AN37: 35 | AO37: 1.59 | AP37: 1.95
A38: 6 | B38: 36 | C38: 5.97250116 | D38: 0.35 | E38: 4.8 | F38: 5.62250116 | G38: 1.17250116 | H38: 2.146721177 | I38: 112.3145417 | J38: 109.0236182 | K38: 108.3654335 | L38: 107.7072487 | M38: 49.12880931 | N38: 42.81023606 | O38: 40.1022761 | P38: 22.95186301 | R38: 6 | S38: 36 | T38: 2400 | AM38: 6 | AN38: 36 | AO38: 1.67 | AP38: 2.06
A39: 6 | B39: 37 | C39: 6.414718669 | D39: 0.35 | E39: 4.8 | F39: 6.064718669 | G39: 1.614718669 | H39: 2.177358388 | I39: 122.3521596 | J39: 119.0142691 | K39: 118.3466911 | L39: 117.679113 | M39: 58.2646637 | N39: 51.85591412 | O39: =$H39/1000*$G39*24*365+($H39/1000*$E39*24*365)*0.2 -> 49.10930715 | P39: 31.7141297 | R39: 6 | S39: 37 | T39: 2471 | AM39: 6 | AN39: 37 | AO39: 1.76 | AP39: 2.17
A40: 6 | B40: 38 | C40: 6.882186829 | D40: 0.35 | E40: 4.8 | F40: 6.532186829 | G40: 2.082186829 | H40: 2.207598363 | I40: 133.0915943 | J40: 129.707346 | K40: 129.0304964 | L40: 128.3536467 | M40: 68.11402717 | N40: 61.61627045 | O40: 58.83151757 | P40: 41.19474934 | R40: 6 | S40: 38 | T40: 2542 | AM40: 6 | AN40: 38 | AO40: 1.85 | AP40: 2.28
A41: 6 | B41: 39 | C41: 7.375730268 | D41: 0.35 | E41: 4.8 | F41: 7.025730268 | G41: 2.575730268 | H41: 2.237456506 | I41: 144.5651909 | J41: 141.1351701 | K41: 140.4491659 | L41: 139.7631618 | M41: 78.7087911 | N41: 72.12315112 | O41: 69.30073398 | P41: 51.42542546 | R41: 6 | S41: 39 | T41: 2613 | AM41: 6 | AN41: 39 | AO41: 1.94 | AP41: 2.4
A42: 6 | B42: 40 | C42: 7.896173611 | D42: 0.35 | E42: 4.8 | F42: 7.546173611 | G42: 3.096173611 | H42: 2.26694725 | I42: 156.8058313 | J42: 153.3306012 | K42: 152.6355552 | L42: 151.9405091 | M42: 90.08141275 | N42: 83.40897089 | O42: 80.54935295 | P42: 62.43843933 | R42: 6 | S42: 40 | T42: 2684 | AM42: 6 | AN42: 40 | AO42: 2.03 | AP42: 2.52
A43: 6 | B43: 41 | C43: 8.444341487 | D43: 0.35 | E43: 4.8 | F43: 8.094341487 | G43: 3.644341487 | H43: 2.296084135 | I43: 169.8469262 | J43: 166.3270293 | K43: 165.6230499 | L43: 164.9190705 | M43: 102.2649042 | N43: 95.50670204 | O43: 92.61032967 | P43: 74.26663798 | R43: 6 | S43: 41 | T43: 2755 | AM43: 6 | AN43: 41 | AO43: 2.13 | AP43: 2.64
A44: 6 | B44: 42 | C44: 9.021058522 | D44: 0.35 | E44: 4.8 | F44: 8.671058522 | G44: 4.221058522 | H44: 2.324879886 | I44: 183.722407 | J44: 180.1583661 | K44: 179.4455579 | L44: 178.7327497 | M44: 115.2928224 | N44: 108.4498639 | O44: 105.5171674 | P44: 86.94342301 | R44: 6 | S44: 42 | T44: 2826 | AM44: 6 | AN44: 42 | AO44: 2.23 | AP44: 2.77
A45: 7 | B45: 43 | C45: 9.653417969 | D45: 0.35 | E45: 4.8 | F45: 9.303417969 | G45: 4.853417969 | H45: 2.353346479 | I45: 199.0082538 | J45: 195.4005737 | K45: 194.6790376 | L45: 193.9575016 | M45: 129.7407949 | N45: 122.814049 | O45: 119.8454436 | P45: 101.0442762 | R45: 7 | S45: 43 | T45: 2900 | AM45: 7 | AN45: 43 | AO45: 2.33 | AP45: 2.9
A46: 7 | B46: 44 | C46: 10.09922289 | D46: 0.35 | E46: 4.8 | F46: 9.74922289 | G46: 5.29922289 | H46: 2.381495205 | I46: 210.6889578 | J46: 207.0381256 | K46: 206.3079592 | L46: 205.5777928 | M46: 140.5929805 | N46: 133.5833828 | O46: 130.5792695 | P46: 111.5532185 | R46: 7 | S46: 44 | T46: 2950 | AM46: 7 | AN46: 44 | AO46: 2.43 | AP46: 3.03
A47: 7 | B47: 45 | C47: 10.56030949 | D47: 0.35 | E47: 4.8 | F47: 10.21030949 | G47: 5.760309491 | H47: 2.409336718 | I47: 222.8836707 | J47: 219.1901576 | K47: 218.4514549 | L47: 217.7127523 | M47: 151.9682175 | N47: 144.8766722 | O47: 141.8374385 | P47: 122.5889583 | R47: 7 | S47: 45 | T47: 3000 | AM47: 7 | AN47: 45 | AO47: 2.53 | AP47: 3.17
A48: 7 | B48: 46 | C48: 11.03696577 | D48: 0.35 | E48: 4.8 | F48: 10.68696577 | G48: 6.236965772 | H48: 2.436881089 | I48: 235.606973 | J48: 231.8712343 | K48: 231.1240865 | L48: 230.3769388 | M48: 163.8807897 | N48: 156.7081714 | O48: 153.6341921 | P48: 134.1656567 | R48: 7 | S48: 46 | T48: 3050 | AM48: 7 | AN48: 46 | AO48: 2.64 | AP48: 3.3
A49: 7 | B49: 47 | C49: 11.52947973 | D49: 0.35 | E49: 4.8 | F49: 11.17947973 | G49: 6.729479733 | H49: 2.464137848 | I49: 248.8735918 | J49: 245.0960685 | K49: 244.3405638 | L49: 243.5850591 | M49: 176.345144 | N49: 169.0922993 | O49: 165.9839372 | P49: 146.2976443 | R49: 7 | S49: 47 | T49: 3100 | AM49: 7 | AN49: 47 | AO49: 2.74 | AP49: 3.44
A50: 7 | B50: 48 | C50: 12.03813937 | D50: 0.35 | E50: 4.8 | F50: 11.68813937 | G50: 7.238139374 | H50: 2.491116023 | I50: 262.6984005 | J50: 258.8795196 | K50: 258.1157434 | L50: 257.3519673 | M50: 189.3758879 | N50: 182.0436366 | O50: 178.9012432 | P50: 158.9994184 | R50: 7 | S50: 48 | T50: 3150 | AM50: 7 | AN50: 48 | AO50: 2.85 | AP50: 3.59
A51: 7 | B51: 49 | C51: 12.5632327 | D51: 0.35 | E51: 4.8 | F51: 12.2132327 | G51: 7.763232695 | H51: 2.517824178 | I51: 277.0964167 | J51: 273.2365922 | K51: 272.4646273 | L51: 271.6926625 | M51: 202.987787 | N51: 195.576924 | O51: 192.4008399 | P51: 172.2856404 | R51: 7 | S51: 49 | T51: 3200 | AM51: 7 | AN51: 49 | AO51: 2.96 | AP51: 3.73
AM52: 8 | AN52: 50 | AO52: 3.07 | AP52: 3.88
H53: PM10 | I53: =AVERAGE(I3:I51) -> 73.00072371 | J53: 70.45652132 | K53: 69.94768084 | L53: 69.43884036 | M53: 40.74999808 | N53: =AVERAGE(N3:N51) -> 37.52492551 | O53: 36.14275156 | P53: 27.38898317 | AM53: 8 | AN53: 51 | AO53: 3.18 | AP53: 4.03
H54: vleeskuikens | J54: =($I53-J53)/$I53 -> 0.03485174201 | K54: =($I53-K53)/$I53 -> 0.04182209041 | L54: =($I53-L53)/$I53 -> 0.04879243881 | M54: =($I53-M53)/$I53 -> 0.4417863823 | N54: =($I53-N53)/$I53 -> 0.4859650205 | O54: 0.5048987226 | P54: =($I53-P53)/$I53 -> 0.6248121692 | AM54: 8 | AN54: 52 | AO54: 3.3 | AP54: 4.18
AM55: 8 | AN55: 53 | AO55: 3.41 | AP55: 4.33
AM56: 8 | AN56: 54 | AO56: 3.53 | AP56: 4.49
AM57: 8 | AN57: 55 | AO57: 3.64 | AP57: 4.65
AM58: 8 | AN58: 56 | AO58: 3.76 | AP58: 4.81
AM59: 9 | AN59: 57 | AO59: 3.88 | AP59: 4.97
AM60: 9 | AN60: 58 | AO60: 4 | AP60: 5.13
AM61: 9 | AN61: 59 | AO61: 4.13 | AP61: 5.3
AM62: 9 | AN62: 60 | AO62: 4.25 | AP62: 5.47
AM63: 9 | AN63: 61 | AO63: 4.37 | AP63: 5.64
AM64: 9 | AN64: 62 | AO64: 4.5 | AP64: 5.81
AM65: 9 | AN65: 63 | AO65: 4.62 | AP65: 5.98
AM66: 10 | AN66: 64 | AO66: 4.75 | AP66: 6.16
AM67: 10 | AN67: 65 | AO67: 4.87 | AP67: 6.33
AM68: 10 | AN68: 66 | AO68: 5 | AP68: 6.51
AM69: 10 | AN69: 67 | AO69: 5.13 | AP69: 6.69
AM70: 10 | AN70: 68 | AO70: 5.25 | AP70: 6.87
AM71: 10 | AN71: 69 | AO71: 5.38 | AP71: 7.05
AM72: 10 | AN72: 70 | AO72: 5.51 | AP72: 7.23
AM73: 11 | AN73: 71 | AO73: 5.64 | AP73: 7.42
AM74: 11 | AN74: 72 | AO74: 5.77 | AP74: 7.6
AM75: 11 | AN75: 73 | AO75: 5.9 | AP75: 7.79
AM76: 11 | AN76: 74 | AO76: 6.03 | AP76: 7.97
AM77: 11 | AN77: 75 | AO77: 6.16 | AP77: 8.16
AM78: 11 | AN78: 76 | AO78: 6.29 | AP78: 8.35
AM79: 11 | AN79: 77 | AO79: 6.42 | AP79: 8.54
AM80: 12 | AN80: 78 | AO80: 6.55 | AP80: 8.73
AM81: 12 | AN81: 79 | AO81: 6.68 | AP81: 8.92
AM82: 12 | AN82: 80 | AO82: 6.81 | AP82: 9.11
AM83: 12 | AN83: 81 | AO83: 6.94 | AP83: 9.3
AM84: 12 | AN84: 82 | AO84: 7.07 | AP84: 9.5
AM85: 12 | AN85: 83 | AO85: 7.2 | AP85: 9.69
AM86: 12 | AN86: 84 | AO86: 7.32 | AP86: 9.88
AM87: 13 | AN87: 85 | AO87: 7.45 | AP87: 10.08
AM88: 13 | AN88: 86 | AO88: 7.58 | AP88: 10.27
AM89: 13 | AN89: 87 | AO89: 7.71 | AP89: 10.47
AM90: 13 | AN90: 88 | AO90: 7.84 | AP90: 10.66
AM91: 13 | AN91: 89 | AO91: 7.97 | AP91: 10.85
AM92: 13 | AN92: 90 | AO92: 8.09 | AP92: 11.05
AM93: 13 | AN93: 91 | AO93: 8.22 | AP93: 11.24
AM94: 14 | AN94: 92 | AO94: 8.35 | AP94: 11.44
AM95: 14 | AN95: 93 | AO95: 8.47 | AP95: 11.63
AM96: 14 | AN96: 94 | AO96: 8.6 | AP96: 11.83
AM97: 14 | AN97: 95 | AO97: 8.72 | AP97: 12.02
AM98: 14 | AN98: 96 | AO98: 8.85 | AP98: 12.22
AM99: 14 | AN99: 97 | AO99: 8.97 | AP99: 12.41
AM100: 14 | AN100: 98 | AO100: 9.09 | AP100: 12.61
AM101: 15 | AN101: 99 | AO101: 9.22 | AP101: 12.8
AM102: 15 | AN102: 100 | AO102: 9.34 | AP102: 13
AM103: 15 | AN103: 101 | AO103: 9.46 | AP103: 13.19
AM104: 15 | AN104: 102 | AO104: 9.58 | AP104: 13.38
AM105: 15 | AN105: 103 | AO105: 9.7 | AP105: 13.58
AM106: 15 | AN106: 104 | AO106: 9.82 | AP106: 13.77
AM107: 15 | AN107: 105 | AO107: 9.94 | AP107: 13.96
AM108: 16 | AN108: 106 | AO108: 10.05 | AP108: 14.15
AM109: 16 | AN109: 107 | AO109: 10.17 | AP109: 14.35
AM110: 16 | AN110: 108 | AO110: 10.29 | AP110: 14.54
AM111: 16 | AN111: 109 | AO111: 10.4 | AP111: 14.73
AM112: 16 | AN112: 110 | AO112: 10.52 | AP112: 14.92
AM113: 16 | AN113: 111 | AO113: 10.63 | AP113: 15.11
AM114: 16 | AN114: 112 | AO114: 10.74 | AP114: 15.3
AM115: 17 | AN115: 113 | AO115: 10.85 | AP115: 15.49
AM116: 17 | AN116: 114 | AO116: 10.97 | AP116: 14.58
AM117: 17 | AN117: 115 | AO117: 11.07 | AP117: 15.86
AM118: 17 | AN118: 116 | AO118: 11.18 | AP118: 16.05
AM119: 17 | AN119: 117 | AO119: 11.29 | AP119: 16.24
AM120: 17 | AN120: 118 | AO120: 11.4 | AP120: 16.42
AM121: 17 | AN121: 119 | AO121: 11.5 | AP121: 16.61
AM122: 18 | AN122: 120 | AO122: 11.61 | AP122: 16.8
AM123: 18 | AN123: 121 | AO123: 11.71 | AP123: 16.98
AM124: 18 | AN124: 122 | AO124: 11.82 | AP124: 17.16
AM125: 18 | AN125: 123 | AO125: 11.92 | AP125: 17.35
AM126: 18 | AN126: 124 | AO126: 12.02 | AP126: 17.53
AM127: 18 | AN127: 125 | AO127: 12.12 | AP127: 17.71
AM128: 18 | AN128: 126 | AO128: 12.22 | AP128: 17.9
AM129: 19 | AN129: 127 | AO129: 12.32 | AP129: 18.08
AM130: 19 | AN130: 128 | AO130: 12.41 | AP130: 18.26
AM131: 19 | AN131: 129 | AO131: 12.51 | AP131: 18.44
AM132: 19 | AN132: 130 | AO132: 12.6 | AP132: 18.62
AM133: 19 | AN133: 131 | AO133: 12.7 | AP133: 18.8
AM134: 19 | AN134: 132 | AO134: 12.79 | AP134: 18.98
AM135: 19 | AN135: 133 | AO135: 12.88 | AP135: 19.16
AM136: 20 | AN136: 134 | AO136: 12.97 | AP136: 19.33
AM137: 20 | AN137: 135 | AO137: 13.06 | AP137: 19.51
AM138: 20 | AN138: 136 | AO138: 12.15 | AP138: 19.69
AM139: 20 | AN139: 137 | AO139: 13.23 | AP139: 19.86
AM140: 20 | AN140: 138 | AO140: 13.32 | AP140: 20.04
AM141: 20 | AN141: 139 | AO141: 13.4 | AP141: 20.22
AM142: 20 | AN142: 140 | AO142: 13.49 | AP142: 20.39
AM143: 21 | AN143: 141 | AP143: 20.57
AM144: 21 | AN144: 142 | AP144: 20.74
AM145: 21 | AN145: 143 | AP145: 20.91
AM146: 21 | AN146: 144 | AP146: 21.09
AM147: 21 | AN147: 145 | AP147: 21.26
AM148: 21 | AN148: 146 | AP148: 21.43
AM149: 21 | AN149: 147 | AP149: 21.6
AM150: 22 | AN150: 148 | AP150: 21.78
AM151: 22 | AN151: 149 | AP151: 21.95
AM152: 22 | AN152: 150 | AP152: 22.12
AM153: 22 | AN153: 151 | AP153: 22.29
AM154: 22 | AN154: 152 | AP154: 22.46
AM155: 22 | AN155: 153 | AP155: 22.63
AM156: 22 | AN156: 154 | AP156: 22.8
AM157: 23 | AN157: 155 | AP157: 22.97
AM158: 23 | AN158: 156 | AP158: 23.14
AM159: 23 | AN159: 157 | AP159: 23.31
AM160: 23 | AN160: 158 | AP160: 23.48
AM161: 23 | AN161: 159 | AP161: 23.65
AM162: 23 | AN162: 160 | AP162: 23.82
AM163: 23 | AN163: 161 | AP163: 23.98
AM164: 24 | AN164: 162 | AP164: 24.15
AM165: 24 | AN165: 163 | AP165: 24.32
AM166: 24 | AN166: 164 | AP166: 24.49
AM167: 24 | AN167: 165 | AP167: 24.65
AM168: 24 | AN168: 166 | AP168: 24.82
AM169: 24 | AN169: 167 | AP169: 24.99
AM170: 24 | AN170: 168 | AP170: 25.15
